Workbook

Sheet INFO
A1: DISCLAIMER: • This spreadsheet has been developed in the framework of the preparation and revision of the set of EN or ISO standards on the energy performance of buildings, to support the European "Energy Performance of Buildings Directive" recast (EPBD-recast, directive 2010/31/EU). • It is meant for use by CEN and ISO technical committee(s) and the working group(s) working on the preparation or revision of the EPB-standard to which this spreadsheet applies. The spreadsheet supports checking that all equations in the developed standard are consistent and can be linked with other relevant standards. It is not meant to perform a full or partial energy performance calculation. • The spreadsheet supports the expert user of the standards, in particular those who want to review the content of the standard and those who want to translate the standard to a software, to understand the correct interpretation of the equations and calculation steps in the standard. • Although it has been developed with care, neither the technical committee(s), nor the working group(s) and experts related to the EPB- standard to which this spreadsheet applies warrant that the calculations and procedures in this spreadsheet are free of errors. The technical committees as well as the working groups and their respective members expressly disclaim any liability or responsibility arising from use of this spreadsheet, or any consequences thereof. Any responsibility arising from the use of this spreadsheet lies with the user.
A2: DRAFT VERSION: • As long as the associated EPB standard or any of the other EPB standards to which it is directly linked are in a draft stage, this spreadsheet is also a draft version only.
A3: WARNINGS: • Note that the spreadsheet may not allow testing all calculation options that are possible according to the standard to which it applies. This remark applies in particular but not only to limitations on the number instances of a variable that can be considered. • In case of differences, the standard should be regarded as the reference, not the spreadsheet. However, during the standard's drafting phase, shortcomings in the draft standard may have been detected and dealt with in the spreadsheets (ideally, such differences are marked). • Note also that these spreadsheets are purely intended for testing and demonstration and therefore not aiming to be user friendly or to be protected against wrong or improper use.
A4: TERMS OF USE: • The user is not allowed to redistribute a modified version of this spreadsheet. • The author(s) would appreciate your feed back on the spreadsheet via the comment sheets for the associated draft standard to be prepared by the national standards bodies during enquiry of the draft standard(s),
A5: Intended use of this document Those responsible for the drafting of actual individual EPB standards shall - read and understand the following documents - prCEN/TS 16628 Basic Principles (in short "BP") - prCEN/TS 16629 Detailed Technical Rules (in short "DTR") - prEN 15603:2013 ("Overarching Standard", in short "OA")) - prCEN/TR 15615:2013 Technical report to overarching standard; - Prepare their individual EPB standard according to CEN rules, BP, DTR and OA - Prepare the accompanying technical report using the dedicated template - Prepare an accompanying XLS spreadsheet, to demonstrate inputs, output and calculation chain. This sample excel spreadsheet provides a template to help in this task.
A6: Why an Excel spradsheet? To demonstrate the validity and required data I/O for the calculation procedure defined in the standard: - list of all input needed --> sheet "Method_input" - list of intended output --> sheet "Method_output" - calculation sequence --> sheet "Method_calculation"
A7: The example is prepared for a simple procedure. The sheet calculation may need extensions such as: - using several columns when operating on arrays - refering to a subset of sheets input/calculation/output to describe a subroutine For complex tasks MACRO can be used. This sheet does not support calculation methods that take into account data in a different time-step than that that is being calculated. A version that allows taking into account values at previous time step will be developed.
A8: LIST SHEETS
A9: Simplified_input_correlation Use this sheet to demontrate simplified input correlation, if any in your standard. Typically these correlations are defined in annex C of the standard. They provide the normal detailed input of a procedure, based on a simplified input data set.
A10: Product_descriptive_data Use this sheet to list product descriptive data (typically with case identifiers). Some examples of selection tables are given. The output from the selection tables (green cells) can be linked to the sheet "method_input" for use in the procedure.
A11: Product_tech_data Use this sheet to list product technical data (typically numerical values and data). Some examples are given with default that may be typically included in annex A of the standard. The output from the selection tables (green cells) can be linked to the sheet "method_input" for use in the procedure.
A12: Process_design_data Use this sheet to list system descriptive data (typically with case identifiers). Some examples of selection tables are given. The output from the selection tables (green cells) can be linked to the sheet "method_input" for use in the procedure.
A13: Data_catalogue_example It is an example of how a data catalogue can work, filtering the catalogue of product properties based on product descriptive data. You can optionally build a similar catalogue for products involved in your standard.
A14: Input_series Prepare in this sheet data for each time step if you want to test the procedure on more steps.
A15: Method_input List in this sheet all the input required for the calculation in one time step. THIS SHEET IS REQUIRED TO DEMONSTRATE THE REQUIRED DATA INPUT.
A16: Method_calculation Detail in this sheet your calculation procedure. There should be one calculation in one cell for each equation in the standard. THIS SHEET IS REQUIRED TO DEMONSTRATE THE CALCULATION PROCEDURE.
A17: Method_output List in this sheet all the intended output of the procedure. THIS SHEET IS REQUIRED TO DEMONSTRATE THE AVAILABLE DATA OUTPUT.
A18: Output_series Series alculation results are stored in this sheet. Calculation for each time step is launched in this sheet.
A19: Greek_to_soft This sheet includes the correspondence table between greek letters and software language coding of variables
A20: Symbols This sheet includes common symbols for reference.
A21: Subs buildings This sheet includes relevant common symbols for the building domain
A22: Subs systems This sheet includes relevant common symbols for the technical systems domain
A23: Subs del_EP This sheet includes relevant common symbols for the assessment boundary energy flows
A24: Subs others This sheet includes relevant common symbols for other general purposes (typically futher levels appended to previously defined subscripts)
A25: Hostory Changes in this sheet according to revisions

Sheet Simplified_input_correlation
A1: Create here a simulation of each correlation method in your Annex C, if any
A4: Name | B4: Symbol | C4: Unit | D4: Value | E4: Range | F4: Formula ref. | G4: Formula | H4: Notes
A5: Input data
A6: Length of the building | B6: lL | C6: m | D6: 30 | E6: 4…100
A7: Width of the building | B7: lW | C7: m | D7: 20 | E7: 4…20
A8: Number of loors | B8: Nlev | C8: - | D8: 3 | E8: 1…10
A9: Floor heigth | B9: Hfl | C9: m | D9: 3.1 | E9: 2…5
A12: METHOD
A14: Detail all formulas
A15: Length of connection of radiators to vertical shafts | B15: lA | C15: m | D15: =0.55*Method_in*D7*D8 -> 990
A16: Length of vertical shafts | B16: lS | C16: m | D16: =0.025*Method_in*D7*D8*D9 -> 139.5
A17: Length of base collector | B17: lV | C17: m | D17: =2*Method_in+0.01625*Method_in*D7*D7 -> 255
A18: …
A20: Output data
A21: Length of shafts | B21: lS | C21: m | D21: =+D16 -> 139.5 | E21: 0...∞
A22: diameter of shafts | B22: dS | C22: m | E22: 0…0,2
A23: Length of base ring | B23: lB | C23: m | D23: =+D17 -> 255 | E23: 0...∞
A24: diameter of base ring | B24: dB | C24: m | E24: 0…0,2

Sheet Product_descriptive_data
A1: Example of descriptive data. In a simple structure, this can be connected directly to the "method_input" sheet where this data is required. In this example spreadsheet the "Method_input" is linked to the "data_catalogue".
A6: Product descriptive data (qualitative)
A8: Boiler type, condensing / non condensing
A9: 3 | B9: BLR_TYPE | C9: =INDEX(C11:C13,A9) -> BLR_TYPE_STND
A11: Condensing | C11: BLR_TYPE_COND
A12: Low temperature | C12: BLR_TYPE_LTMP
A13: Standard | C13: BLR_TYPE_STND
A16: Boiler use
A17: 1 | B17: BLR_USE | C17: =INDEX(C19:C22,A17) -> BLR_USE_H
A19: Heating | C19: BLR_USE_H
A20: Domestic hot water | C20: BLR_USE_W
A21: Cooling | C21: BLR_USE_C
A22: All | C22: BLR_USE_ALL
A25: Fuel
A26: 1 | B26: BLR_FUEL | C26: =INDEX(C28:C31,A26) -> BLR_FUEL_GAS
A28: Gas | C28: BLR_FUEL_GAS
A29: LPG | C29: BLR_FUEL_LPG
A30: Oil | C30: BLR_FUEL_OIL
A31: Biomass | C31: BLR_FUEL_BM
A34: CE Marking
A35: 1 | B35: BLR_CE | C35: =INDEX(C37:C38,A35) -> BLR_DATA_YES
A37: Boiler is marked CE | C37: BLR_DATA_YES
A38: Boiler is NOT marked CE | C38: BLR_DATA_NO
A41: Burner control type
A42: 1 | B42: BLR_CTRL_POW | C42: =INDEX(C44:C46,A42) -> BLR_CTRL_POW_ONOF
A44: Single stage control (ON-OFF) | C44: BLR_CTRL_POW_ONOF
A45: Stepped control | C45: BLR_CTRL_POW_STEP
A46: Modulating control | C46: BLR_CTRL_POW_MOD

Sheet Product_tech_data
A1: EXAMPLE OF A SHEET WITH DEFAULT INPUT Create here a simulation of each default data formula given in annex A of the standard. Optionally connect the selected values to the detailed input data selection sheet (detailed input)
A5: A.1.2.1 Generator output at full load; | B5: ФPn | C5: kW | D5: 60
A8: A.1.2.2 Generator efficiency at full load | B8: ηgnr;Pn | C8: % | D8: =+IF(D10<D29,D27+D28*LOG10(D10),D27+D28*LOG10(D29)) -> 88.5563025
A9: Known input
A10: Generator output at full load; | B10: ФPn | C10: kW | D10: =+D5 -> 60
A12: Base formula
A14: Data table
A15: Data | C15: c1 | D15: c2
A16: Unit | C16: % | D16: %
A17: Gas standard boiler | C17: 85 | D17: 2
A18: Gas low temperature boiler | C18: 88.5 | D18: 1.5
A19: Gas condensing boiler | C19: 92 | D19: 1
A20: Oil standard boiler | C20: 85 | D20: 2
A21: Oil low temperature boiler | C21: 88 | D21: 1.5
A22: Oil condensing boiler | C22: 92 | D22: 1
A23: My boiler with fixed value (c2 = 0) | C23: 91 | D23: 0
A24: Last boiler | C24: 50 | D24: 0
A25: Your selection
A26: Selection index | D26: 1
A27: c1 | C27: % | D27: =INDEX(C17:C24,D26) -> 85
A28: c2 | C28: % | D28: =INDEX(D17:D24,D26) -> 2
A29: Maximum kW | C29: kW | D29: 400
A31: A.1.2.3 Generator output at intermediate load; | B31: ФPint | C31: kW | D31: =+D5*0.3 -> 18
A34: A.1.2.4 Generator efficiency at intermediate load | B34: ηgnr,Pint | C34: % | D34: =+IF(D36<D55,D53+D54*LOG10(D36),D53+D54*LOG10(D55)) -> 91.66722688
A35: Known input
A36: Generator output at full load; | B36: ФPn | C36: kW | D36: =+D5 -> 60
A38: Base formula
A40: Data table
A41: Data | C41: c3 | D41: c4
A42: Unit | C42: % | D42: %
A43: Gas standard boiler | C43: 81.5 | D43: 3
A44: Gas low temperature boiler | C44: 89 | D44: 1.5
A45: Gas condensing boiler | C45: 98 | D45: 1
A46: Oil standard boiler | C46: 81 | D46: 2
A47: Oil low temperature boiler | C47: 89 | D47: 1.5
A48: Oil condensing boiler | C48: 96 | D48: 1
A49: My boiler with fixed value (c2 = 0) | C49: 87 | D49: 0
A50: Last boiler | C50: 50 | D50: 0
A51: Your selection
A52: Selection index | D52: 2
A53: c3 | C53: % | D53: =INDEX(C43:C50,D52) -> 89
A54: c4 | C54: % | D54: =INDEX(D43:D50,D52) -> 1.5
A55: Maximum kW | C55: kW | D55: 400
A58: A.1.2.5 Stand-by heat losses | B58: Фgen,ls,P0 | C58: kW | D58: =D60*(D77/100)*(D60^D78) -> 0.9
A59: Known input
A60: Generator output at full load; | B60: ФPn | C60: kW | D60: =+D5 -> 60
A62: Base formula
A64: Data table
A65: Data | C65: c5 | D65: c6
A66: Unit | C66: - | D66: -
A67: Gas standard boiler | C67: 8.5 | D67: -0.4
A68: Gas low temperature boiler | C68: 6.5 | D68: -0.35
A69: Gas condensing boiler | C69: 4.8 | D69: -0.35
A70: Oil standard boiler | C70: 8.5 | D70: -0.4
A71: Oil low temperature boiler | C71: 6.5 | D71: -0.35
A72: Oil condensing boiler | C72: 4.8 | D72: -0.35
A73: My boiler (direct proportion to power if c6 set to 0) | C73: 1.5 | D73: 0
A74: Last boiler | C74: 2 | D74: 0
A75: Your selection
A76: Selection index | D76: 7
A77: c7 | C77: % | D77: =INDEX(C67:C74,D76) -> 1.5
A78: c8 | C78: % | D78: =INDEX(D67:D74,D76) -> 0
A81: A.1.2.6 Generator auxiliaries at full load | B81: Фaux,Pn | C81: W | D81: =D99+D100*(D85^D101) -> 321.1627101
A82: A.1.2.6 Generator auxiliaries at part load | B82: Фaux,Pint | C82: W | D82: =G99+G100*(D85^G101) -> 107.0542367
A83: A.1.2.6 Generator auxiliaries at no load | B83: Фaux,P0 | C83: W | D83: =J99+J100*(D85^J101) -> 15
A84: Known input
A85: Generator output at full load; | B85: ФPn | C85: kW | D85: =+D5 -> 60
A87: Base formula
A89: Data table | B89: Full power | E89: Intermediate power | H89: No load
A90: Data | B90: n | C90: c7 | D90: c8 | E90: n | F90: c7 | G90: c8 | H90: n | I90: c7 | J90: c8
A91: Unit | B91: - | C91: W | D91: W | F91: - | G91: . | I91: - | J91: .
A92: Gas atmospheric boiler | B92: 1 | C92: 40 | D92: 0.148 | E92: 1 | F92: 40 | G92: 0.148 | H92: 0 | I92: 15 | J92: 0
A93: Forced draught boiler | B93: 0.48 | C93: 0 | D93: 45 | E93: 0.48 | F93: 0 | G93: 15 | H93: 0.48 | I93: 15 | J93: 0
A94: Condensing boiler | B94: 0.48 | C94: 0 | D94: 45 | E94: 0.48 | F94: 0 | G94: 15 | H94: 0 | I94: 15 | J94: 0
A95: My boiler with fixed value (n = 1) | B95: 1 | C95: 0 | D95: 20 | E95: 1 | F95: 0 | G95: 10 | H95: 0 | I95: 10 | J95: 0
A96: Last boiler | B96: 1 | C96: 0 | D96: 20 | E96: 1 | F96: 0 | G96: 10 | H96: 0 | I96: 10 | J96: 0
A97: Your selection
A98: Selection index | D98: 2 | G98: =+D98 -> 2 | J98: =+G98 -> 2
A99: c7 | C99: W | D99: =INDEX(C92:C96,D98) -> 0 | F99: W | G99: =INDEX(F92:F96,G98) -> 0 | I99: W | J99: =INDEX(I92:I96,J98) -> 15
A100: c8 | C100: W | D100: =INDEX(D92:D96,D98) -> 45 | F100: W | G100: =INDEX(G92:G96,G98) -> 15 | I100: W | J100: =INDEX(J92:J96,J98) -> 0
A101: n | C101: - | D101: =INDEX(B92:B96,D98) -> 0.48 | F101: - | G101: =INDEX(E92:E96,G98) -> 0.48 | I101: - | J101: =INDEX(H92:H96,J98) -> 0.48
A104: A.1.2.1 Recoverable fraction of heat losses | B104: ФPn | C104: kW | D104: 60
A106: Efficiency correction factor at full load | B106: fcorr,Pn | C106: %/°C | D106: =+D124 -> 0.04
A107: Efficiency correction factor at part load | B107: fcorr,Pint | C107: %/°C | D107: =+D125 -> 0.05
A108: Known input
A109: Generator output at full load; | B109: ФPn | C109: kW | D109: =+D53 -> 89
A111: Base formula
A113: Data table
A114: Data | C114: fcorr,Pn | D114: fcorr,Pint
A115: Unit | C115: %/°C | D115: %/°C
A116: Standard boiler | C116: 0.04 | D116: 0.05
A117: Low temperature boiler | C117: 0.04 | D117: 0.05
A118: Gas condensing boiler | C118: 0.2 | D118: 0.2
A119: Oil condensing boiler | C119: 0.1 | D119: 0.1
A120: My boiler | C120: 0.04 | D120: 0.05
A121: Last boiler | C121: 0.04 | D121: 0.05
A122: Your selection
A123: Selection index | D123: 6
A124: c7 | C124: %/°C | D124: =INDEX(C116:C121,D123) -> 0.04
A125: c8 | C125: %/°C | D125: =INDEX(D116:D121,D123) -> 0.05
A128: Minimum boiler operating temperature | B128: θgnr,min | C128: °C | D128: =IF(Product_descriptive_data!C9=Product_descriptive_data!C13,50,0) -> 50
A130: Recoverable fraction of stand-by losses | B130: fgnr,env | C130: - | D130: 0.5
A132: generator average water temperature at test conditions for full load; | B132: θgnr,test,Pn | C132: °C | D132: 70
A134: generator average water temperature at test conditions for intermediate load; | B134: θgnr,test,Pint | C134: °C | D134: 50
A136: difference between mean boiler temperature and test room temperature in test conditions; | B136: Dθtest,P0 | C136: °C | D136: =IF(Product_descriptive_data!C43=Product_descriptive_data!C47,50,0) -> 50
A138: part of the auxiliary energy recovered | B138: frvd,aux | C138: - | D138: 0.75
A140: part of the nominal electrical power not transmitted to the distribution sub-system | B140: frbl,aux | C140: - | D140: 0.25

Sheet Process_design_data
A1: Example of process design data. In a simple structure, this can be connected directly to the "method_input" sheet where this data is required. In this example spreadsheet the "Method input" is linked to the detailed input.
A6: Process design data (qualitative)
A8: Boiler location (installation position)
A9: 1 | B9: BLR_LOC | C9: =INDEX(C11:C14,A9) -> BLR_LOC_INT | E9: qi,brm | F9: bbrm
E10: °C | F10: -
A11: Heated space | C11: BLR_LOC_INT | E11: 20 | F11: 0
A12: Unheated room | C12: BLR_LOC_UNH | E12: 5 | F12: 0.5
A13: Boiler room | C13: BLR_LOC_BLR | E13: 15 | F13: 0.7
A14: External | C14: BLR_LOC_EXT | E14: -10 | F14: 1
A15: Selected value | E15: =INDEX(E11:E14,$A$9) -> 20 | F15: =INDEX(F11:F14,$A$9) -> 0
A18: Boiler hydraulic connection
A19: 4 | B19: BLR_HCON | C19: =INDEX(C21:C24,A19) -> BLR_HCON_HEX
A21: Direct connection | C21: BLR_HCON_DIR
A22: Hydraulic decoupling (independent flow rate) | C22: BLR_HCON_DEC
A23: Direct, with condensate prevention pump | C23: BLR_HCON_NCP
A24: Heat exchanger | C24: BLR_HCON_HEX

Sheet Data_catalogue_example
A1: EXAMPLE OF A PRODUCT DATA CATALOGUE Product descriptive data is used to filter the actual catalogue. Unsuitable prioducts are indicated by "Non available" The desired product in the catalogue is then selected via the main list --> alla data is available with one click. NOTE: Default data are also part of the catalogue. This sample catalogue is connected to the "Method input" sheet. NOTE: This highlights the high importance of the user interface and of a correct data input structuring. | J1: DATA FOR EACH BOILER | W1: SELECTION OF BOILERS COMPATIBLE WITH THE QUALITATIVE DESCRIPTION
A4: Product descriptive data (qualitative)
A6: Boiler use
A7: 3 | C7: BLR_USE | D7: =INDEX(D9:D11,A7) -> BLR_USE_ALL
A9: Heating | D9: BLR_USE_H
A10: Domestic hot water | D10: BLR_USE_DHW
A11: All | D11: BLR_USE_ALL
A14: Fuel
A15: 2 | C15: BLR_FUEL | D15: =INDEX(D17:D19,A15) -> BLR_FUEL_OIL
A16: Values
A17: Gas | D17: BLR_FUEL_GAS
A18: Oil | D18: BLR_FUEL_OIL
A19: All | D19: BLR_FUEL_ALL
A22: Boiler type, condensing / non condensing
A23: 1 | C23: BLR_COND | D23: =INDEX(D25:D26,A23) -> BLR_COND_YES
A24: Values
A25: Condensing | D25: BLR_COND_YES
A26: Non condensing | D26: BLR_COND_NO
A29: Product technical data
A31: Generator output at full load; | E31: ФPn | F31: kW | G31: 60
A34: Boiler product data | C34: BLR_DATA | D34: =INDEX(D38:D49,C36) -> BLR_DATA_NAT_1
C36: 7
A37: Values | W37: Display ? | X37: Condensing ? | Z37: Fuel ? | AB37: Condition 3? | AD37: Condition 4?
A38: =IF(W38,B38,"NOT COMPATIBLE") -> NOT COMPATIBLE | B38: Gas, standard, minimum value | D38: BLR_DATA_GAS_STD | W38: =AND(X38,Z38,AB38,AD38) -> FALSE | X38: =$D$23=Y38 -> FALSE | Y38: BLR_COND_NO | Z38: =OR($D$15=$D$19,$D$15=AA38) -> FALSE | AA38: BLR_FUEL_GAS | AB38: TRUE | AD38: TRUE
A39: =IF(W39,B39,"NOT COMPATIBLE") -> NOT COMPATIBLE | B39: Gas, low temperature, minimum value | D39: BLR_DATA_GAS_LT | W39: =AND(X39,Z39,AB39,AD39) -> FALSE | X39: =$D$23=Y39 -> FALSE | Y39: BLR_COND_NO | Z39: FALSE | AA39: BLR_FUEL_GAS | AB39: TRUE | AD39: TRUE
A40: NOT COMPATIBLE | B40: Gas, Condensing, minimum value | D40: BLR_DATA_GAS_CND | W40: FALSE | X40: TRUE | Y40: BLR_COND_YES | Z40: FALSE | AA40: BLR_FUEL_GAS | AB40: TRUE | AD40: TRUE
A41: NOT COMPATIBLE | B41: Oil, standard, minimum value | D41: BLR_DATA_OIL_STD | W41: FALSE | X41: FALSE | Y41: BLR_COND_NO | Z41: TRUE | AA41: BLR_FUEL_OIL | AB41: TRUE | AD41: TRUE
A42: NOT COMPATIBLE | B42: Oil, low temperature, minimum value | D42: BLR_DATA_OIL_LT | W42: FALSE | X42: FALSE | Y42: BLR_COND_NO | Z42: TRUE | AA42: BLR_FUEL_OIL | AB42: TRUE | AD42: TRUE
A43: Oil, condensing, minimum value | B43: Oil, condensing, minimum value | D43: BLR_DATA_OIL_CND | W43: TRUE | X43: TRUE | Y43: BLR_COND_YES | Z43: TRUE | AA43: BLR_FUEL_OIL | AB43: TRUE | AD43: TRUE
A44: NOT COMPATIBLE | B44: Default national: 1 - old oil boiler | D44: BLR_DATA_NAT_1 | W44: FALSE | X44: FALSE | Y44: BLR_COND_NO | Z44: TRUE | AA44: BLR_FUEL_OIL | AB44: TRUE | AD44: TRUE
A45: NOT COMPATIBLE | B45: Default national: 2 - old gas boiler | D45: BLR_DATA_NAT_2 | W45: FALSE | X45: FALSE | Y45: BLR_COND_NO | Z45: FALSE | AA45: BLR_FUEL_GAS | AB45: TRUE | AD45: TRUE
A46: NOT COMPATIBLE | B46: Default national: 3 - new boiler | D46: BLR_DATA_NAT_3 | W46: FALSE | X46: FALSE | Y46: BLR_COND_NO | Z46: FALSE | AA46: BLR_FUEL_GAS | AB46: TRUE | AD46: TRUE
A47: NOT COMPATIBLE | B47: Make 1 boiler 1 gas (catalogue) | D47: BLR_DATA_CAT_01 | W47: FALSE | X47: FALSE | Y47: BLR_COND_NO | Z47: FALSE | AA47: BLR_FUEL_GAS | AB47: TRUE | AD47: TRUE
A48: NOT COMPATIBLE | B48: Make 1 boiler 2 oil (catalogue) | D48: BLR_DATA_CAT_02 | W48: FALSE | X48: FALSE | Y48: BLR_COND_NO | Z48: TRUE | AA48: BLR_FUEL_OIL | AB48: TRUE | AD48: TRUE
A49: NOT COMPATIBLE | B49: Custom values | D49: BLR_DATA_USR | W49: FALSE | X49: FALSE | Y49: BLR_COND_NO | Z49: FALSE | AA49: BLR_FUEL_GAS | AB49: TRUE | AD49: TRUE
A52: System design data
A54: Localisation | C54: LOC | D54: =INDEX(D57:D60,C55) -> LOC_INT
C55: 1
A56: Values
A57: Heated space | D57: LOC_INT
A58: Unheated space | D58: LOC_UNH
A59: Boiler room | D59: LOC_BLR
A60: External | D60: LOC_EXT
A63: Operating conditions
A66: Direct connection
A67: Independent flow rate
A68: Heat exchanger
A69: Last option
A72: Description | C72: Variable TAG | D72: Option tag | E72: Symbol | F72: Unit | G72: Value | H72: Range | J72: =+D38 -> BLR_DATA_GAS_STD | K72: =+D39 -> BLR_DATA_GAS_LT | L72: =+D40 -> BLR_DATA_GAS_CND | M72: =+D41 -> BLR_DATA_OIL_STD | N72: =+D42 -> BLR_DATA_OIL_LT | O72: =+D43 -> BLR_DATA_OIL_CND | P72: =+D44 -> BLR_DATA_NAT_1 | Q72: =+D45 -> BLR_DATA_NAT_2 | R72: =+D46 -> BLR_DATA_NAT_3 | S72: =+D47 -> BLR_DATA_CAT_01 | T72: =+D48 -> BLR_DATA_CAT_02 | U72: =+D49 -> BLR_DATA_USR
A73: generator output at full load; | E73: ФPn | F73: kW | G73: =INDEX(J73:U73,1,$C$36) -> 60 | J73: =+$G$31 -> 60 | K73: 60 | L73: 60 | M73: 60 | N73: 60 | O73: 60 | P73: 60 | Q73: 60 | R73: 60 | S73: 45 | T73: 30 | U73: =+$G$31 -> 60
A74: Boiler type | G74: =INDEX(J74:U74,1,$C$36) -> BLR_COND_NO | J74: BLR_COND_NO | K74: BLR_COND_NO | L74: BLR_COND_YES | M74: BLR_COND_NO | N74: BLR_COND_NO | O74: BLR_COND_YES | P74: BLR_COND_NO | Q74: BLR_COND_NO | R74: BLR_COND_NO | S74: BLR_COND_NO | T74: BLR_COND_NO | U74: BLR_COND_YES
A75: Fuel type | G75: =INDEX(J75:U75,1,$C$36) -> BLR_FUEL_OIL | J75: BLR_FUEL_GAS | K75: BLR_FUEL_GAS | L75: BLR_FUEL_GAS | M75: BLR_FUEL_OIL | N75: BLR_FUEL_OIL | O75: BLR_FUEL_OIL | P75: BLR_FUEL_OIL | Q75: BLR_FUEL_GAS | R75: BLR_FUEL_GAS | S75: BLR_FUEL_GAS | T75: BLR_FUEL_OIL | U75: BLR_FUEL_GAS
A76: CE marking | G76: =INDEX(J76:U76,1,$C$36) -> BLR_CE_YES | J76: BLR_CE_YES | K76: BLR_CE_YES | L76: BLR_CE_YES | M76: BLR_CE_YES | N76: BLR_CE_YES | O76: BLR_CE_YES | P76: BLR_CE_YES | Q76: BLR_CE_YES | R76: BLR_CE_YES | S76: BLR_CE_YES | T76: BLR_CE_NO | U76: BLR_CE_YES
A77: Limited power | E77: ФPn,ltd | F77: kW | J77: =IF(J73>400,400,J73) -> 60 | K77: =IF(K73>400,400,K73) -> 60 | L77: 60 | M77: 60 | N77: 60 | O77: 60 | P77: 60 | Q77: 60 | R77: 60 | S77: 45 | T77: 30 | U77: 60
E78: C1 | F78: % | J78: 85 | K78: 88 | L78: 94 | M78: 85 | N78: 88 | O78: 94 | P78: 92 | Q78: 91 | R78: 93
E79: C2 | F79: % | J79: 2 | K79: 1.5 | L79: 1 | M79: 2 | N79: 1.5 | O79: 1 | P79: 0 | Q79: 0 | R79: 0
A80: generator efficiency at full load; | E80: ηgnr,Pn | F80: % | G80: =INDEX(J80:U80,1,$C$36) -> 92 | J80: =J78+J79*LOG10(J77) -> 88.5563025 | K80: =K78+K79*LOG10(K77) -> 90.66722688 | L80: 95.77815125 | M80: 88.5563025 | N80: 90.66722688 | O80: 95.77815125 | P80: 92 | Q80: 91 | R80: 93 | S80: 94 | T80: 92 | U80: 93
A81: generator output at intermediate load; | E81: ФPint | F81: kW | G81: =INDEX(J81:U81,1,$C$36) -> 18 | J81: =+J73*0.3 -> 18 | K81: =+K73*0.3 -> 18 | L81: 18 | M81: =+M73*0.3 -> 18 | N81: =+N73*0.3 -> 18 | O81: =+O73*0.3 -> 18 | P81: 18 | Q81: 18 | R81: 18 | S81: 13.5 | T81: 9 | U81: 18
E82: C3 | F82: % | J82: 81.5 | K82: 89 | L82: 98 | M82: 81.5 | N82: 89 | O82: =98/1.05 -> 93.33333333 | P82: 90 | Q82: 89 | R82: 91
E83: C4 | F83: % | J83: 3 | K83: 1.5 | L83: 1 | M83: 3 | N83: 1.5 | O83: =1/1.05 -> 0.9523809524 | P83: 0 | Q83: 0 | R83: 0
A84: generator efficiency at intermediate load; | E84: ηgnr,Pint | F84: % | G84: =INDEX(J84:U84,1,$C$36) -> 90 | J84: =J82+J83*LOG10(J77) -> 86.83445375 | K84: =K82+K83*LOG10(K77) -> 91.66722688 | L84: 99.77815125 | M84: 86.83445375 | N84: 91.66722688 | O84: 95.02681071 | P84: 90 | Q84: 89 | R84: 91 | S84: 94 | T84: 92 | U84: 93
E85: C5 | F85: % | J85: 8.5 | K85: 5 | L85: 4.8 | M85: 8.5 | N85: 5 | O85: 4.8 | P85: 5 | Q85: 5 | R85: 5
E86: C6 | F86: % | J86: -0.4 | K86: -0.35 | L86: -0.35 | M86: -0.4 | N86: -0.35 | O86: -0.35 | P86: -0.35 | Q86: -0.35 | R86: -0.35
A87: stand-by heat loss at test temperature difference Dθi,test; | E87: Фgnr,ls,P0 | F87: kW | G87: =INDEX(J87:U87,1,$C$36) -> 0.7157614713 | J87: =+J73*(J85/100)*(J73^J86) -> 0.9915387147 | K87: 0.7157614713 | L87: 0.6871310125 | M87: =+M73*(M85/100)*(M73^M86) -> 0.9915387147 | N87: =+N73*(N85/100)*(N73^N86) -> 0.7157614713 | O87: =+O73*(O85/100)*(O73^O86) -> 0.6871310125 | P87: 0.7157614713 | Q87: 0.7157614713 | R87: 0.7157614713 | S87: 0.5 | T87: 0.6 | U87: 0.4
E88: C7 | F88: W | J88: 0 | K88: 0 | L88: 0 | M88: 0 | N88: 0 | O88: 0 | P88: 0 | Q88: 0 | R88: 0
E89: C8 | F89: W | J89: 45 | K89: 45 | L89: 45 | M89: 45 | N89: 45 | O89: 45 | P89: 45 | Q89: 45 | R89: 45
E90: n | F90: - | J90: 0.48 | K90: 0.48 | L90: 0.48 | M90: 0.48 | N90: 0.48 | O90: 0.48 | P90: 0.48 | Q90: 0.48 | R90: 0.48
A91: power consumption of auxiliary devices at full load; | E91: Paux,gnr,Pn | F91: kW | G91: =INDEX(J91:U91,1,$C$36) -> 0.3211627101 | J91: =(+J88+J89*J73^J90)/1000 -> 0.3211627101 | K91: 0.3211627101 | L91: 0.3211627101 | M91: =(+M88+M89*M73^M90)/1000 -> 0.3211627101 | N91: =(+N88+N89*N73^N90)/1000 -> 0.3211627101 | O91: =(+O88+O89*O73^O90)/1000 -> 0.3211627101 | P91: 0.3211627101 | Q91: 0.3211627101 | R91: 0.3211627101 | S91: 0.3 | T91: 0.4 | U91: 0.6
E92: C7 | F92: W | J92: 0 | K92: 0 | L92: 0 | M92: 0 | N92: 0 | O92: 0 | P92: 0 | Q92: 0 | R92: 0
E93: C8 | F93: W | J93: 15 | K93: 15 | L93: 15 | M93: 15 | N93: 15 | O93: 15 | P93: 15 | Q93: 15 | R93: 15
E94: n | F94: - | J94: 0.48 | K94: 0.48 | L94: 0.48 | M94: 0.48 | N94: 0.48 | O94: 0.48 | P94: 0.48 | Q94: 0.48 | R94: 0.48
A95: power consumption of auxiliary devices at intermediate load; | E95: Paux,gnr,Pint | F95: kW | G95: =INDEX(J95:U95,1,$C$36) -> 0.06006508023 | J95: =(+J92+J93*J81^J94)/1000 -> 0.06006508023 | K95: 0.06006508023 | L95: 0.06006508023 | M95: =(+M92+M93*M81^M94)/1000 -> 0.06006508023 | N95: =(+N92+N93*N81^N94)/1000 -> 0.06006508023 | O95: =(+O92+O93*O81^O94)/1000 -> 0.06006508023 | P95: 0.06006508023 | Q95: 0.06006508023 | R95: 0.06006508023 | S95: 0.1 | T95: 0.07 | U95: 0.05
E96: C7 | F96: W | J96: 15 | K96: 15 | L96: 15 | M96: 15 | N96: 15 | O96: 15 | P96: 15 | Q96: 15 | R96: 15
E97: C8 | F97: W | J97: 0 | K97: 0 | L97: 0 | M97: 0 | N97: 0 | O97: 0 | P97: 0 | Q97: 0 | R97: 0
E98: n | F98: - | J98: 0 | K98: 0 | L98: 0 | M98: 0 | N98: 0 | O98: 0 | P98: 0 | Q98: 0 | R98: 0
A99: stand-by power consumption of auxiliary devices; | E99: Paux,gnr,P0 | F99: kW | G99: =INDEX(J99:U99,1,$C$36) -> 0.015 | J99: =(+J96+J97*J85^J98)/1000 -> 0.015 | K99: 0.015 | L99: 0.015 | M99: 0.015 | N99: 0.015 | O99: 0.015 | P99: 0.015 | Q99: 0.015 | R99: 0.015 | S99: 0 | T99: 0 | U99: 0
A100: auxiliary power when the generation system is inactive | E100: Paux,off | F100: kW | G100: =INDEX(J100:U100,1,$C$36) -> 0 | J100: 0 | K100: 0 | L100: 0 | M100: 0 | N100: 0 | O100: 0 | P100: 0 | Q100: 0 | R100: 0 | S100: 0 | T100: 0 | U100: 0
A101: minimum operating boiler temperature. | E101: θgnr,min | F101: °C | G101: =INDEX(J101:U101,1,$C$36) -> 50 | J101: 50 | K101: 30 | L101: 0 | M101: 50 | N101: 30 | O101: 0 | P101: 50 | Q101: 50 | R101: 50 | S101: 50 | T101: 50 | U101: 50
A102: Recoverable fraction of stand-by losses | E102: fgnr,env | F102: - | G102: =INDEX(J102:U102,1,$C$36) -> 0.5 | J102: 0.5 | K102: 0.5 | L102: 0.5 | M102: 0.5 | N102: 0.5 | O102: 0.5 | P102: 0.5 | Q102: 0.5 | R102: 0.5 | S102: 0.5 | T102: 0.5 | U102: 0.5
A104: correction factor of full-load efficiency; | E104: fcorr,Pn | F104: - | G104: =INDEX(J104:U104,1,$C$36) -> 0.04 | J104: 0.04 | K104: 0.04 | L104: 0.2 | M104: 0.04 | N104: 0.04 | O104: 0.2 | P104: 0.04 | Q104: 0.04 | R104: 0.1 | S104: 0.04 | T104: 0.04 | U104: 0.04
A105: correction factor of intermediate load efficiency; | E105: fcorr,Pint | F105: - | G105: =INDEX(J105:U105,1,$C$36) -> 0.05 | J105: 0.05 | K105: 0.05 | L105: 0.2 | M105: 0.05 | N105: 0.05 | O105: 0.2 | P105: 0.05 | Q105: 0.05 | R105: 0.05 | S105: 0.05 | T105: 0.05 | U105: 0.05
A107: generator average water temperature at test conditions for full load; | E107: θgnr,test,Pn | F107: °C | G107: =INDEX(J107:U107,1,$C$36) -> 70 | J107: 70 | K107: 70 | L107: 70 | M107: 70 | N107: 70 | O107: 70 | P107: 70 | Q107: 70 | R107: 70 | S107: 70 | T107: 70 | U107: 70
A108: generator average water temperature at test conditions for intermediate load; | E108: θgnr,test,Pint | F108: °C | G108: =INDEX(J108:U108,1,$C$36) -> 50 | J108: 50 | K108: 40 | L108: 30 | M108: 50 | N108: 40 | O108: 30 | P108: 50 | Q108: 50 | R108: 50 | S108: 50 | T108: 50 | U108: 50
A109: difference between mean boiler temperature and test room temperature in test conditions; | E109: Dθtest,P0 | F109: °C | G109: =INDEX(J109:U109,1,$C$36) -> 50 | J109: 50 | K109: 50 | L109: 50 | M109: 50 | N109: 50 | O109: 50 | P109: 50 | Q109: 50 | R109: 50 | S109: 50 | T109: 50 | U109: 50
A111: part of the auxiliary energy recovered | E111: frvd,aux | F111: - | G111: =INDEX(J111:U111,1,$C$36) -> 0.75 | J111: 0.75 | K111: 0.75 | L111: 0.75 | M111: 0.75 | N111: 0.75 | O111: 0.75 | P111: 0.75 | Q111: 0.75 | R111: 0.75 | S111: 0.75 | T111: 0.75 | U111: 0.75
A112: part of the nominal electrical power not transmitted to the distribution sub-system | E112: frbl,aux | F112: - | G112: =INDEX(J112:U112,1,$C$36) -> 0.25 | J112: 0.25 | K112: 0.25 | L112: 0.25 | M112: 0.25 | N112: 0.25 | O112: 0.25 | P112: 0.25 | Q112: 0.25 | R112: 0.25 | S112: 0.25 | T112: 0.25 | U112: 0.25
A117: System design data
A118: Installation room temperature; | E118: qi,brm | F118: °C | G118: 15
A119: Temperature reduction factor of install. room | E119: bbrm | F119: - | G119: 0.7

Sheet Ground preh+prec
A2: Calculation method for ground preheating and -cooling - see prEN 16798-5-1 Annex C | F2: must be completed and verified
A4: Input
A5: Name | B5: Symbol | C5: Software name | D5: Unit | E5: Value | F5: Range | G5: Origin | H5: Varying | I5: Notes
A6: inner surface of the ground heat exchanger | B6: As | C6: A_S | D6: m² | E6: 50 | F6: 0...∞ | H6: No
A7: annual mean outside air temperature | B7: ϑe;mn;an | C7: theta_e_mn_an | D7: °C | E7: 5 | F7: -50…+50 | H7: Yes
A8: maximum monthly mean outside air temperature | B8: ϑe;max;m | C8: theta_e_max_m | D8: °C | E8: -14 | F8: -50…+50 | H8: Yes
A9: annual hour (with tan = 0 h at the beginning of the year) | B9: tan | C9: t_an | D9: h | E9: 300 | F9: 0…8760 | H9: Yes
A10: density of the ground material | B10: ρgnd | C10: rho_gnd | D10: kg/m³ | E10: 1500 | F10: 0...∞ | H10: No
A11: capacity of the ground material | B11: cgnd | C11: c_gnd | D11: J/(kg*K) | E11: 1200 | F11: 0...∞ | H11: No
A12: conductivity of the ground material | B12: λgnd | C12: lambda_gnd | D12: W/mK | E12: 1.88 | F12: 0...∞ | H12: No
A13: depth in the ground | B13: z | C13: z | D13: m² | E13: 2 | F13: 0...∞ | H13: Yes
A14: time of the year when the monthly mean outside air temperature is minimal | B14: tan;min | C14: t_an_min | D14: h | E14: 350 | F14: 0…8760 | H14: Yes
A15: inner diameter of the duct | B15: di | C15: d_i | D15: m | E15: 0.15 | F15: 0...∞ | H15: Yes
A16: outer diameter of the duct | B16: do | C16: d_o | D16: m | E16: 0.155 | F16: 0...∞ | H16: Yes
A17: average air temperature in the duct | B17: ϑm | C17: theta_m | D17: °C | E17: 1 | F17: -50…+50 | H17: Yes | I17: ϑm =ϑe
A18: velocity of the air in the duct | B18: v | C18: v | D18: m/s | E18: 3 | F18: 0...∞ | H18: Yes
A19: maximum relative humidity of the air leaving the ground heat exchanger | B19: ϕODA;gnd;max | C19: phi_ODA_gnd_max | D19: % | E19: 100 | F19: 0…100 | H19: Yes
A20: mean external moisture content of the calculation interval | B20: xe | C20: x_e | D20: kg/kg dry air | E20: 0.0034 | F20: 0...∞ | H20: Yes
A21: mean pressure of the ambient air | B21: patm | C21: p_atm | D21: Pa | E21: 100000 | F21: -∞...∞ | H21: No
A22: conductivity of the duct | B22: λdu | C22: lambda_du | D22: W/mK | E22: 0.0034 | F22: 0...∞ | H22: No
A24: Calculation
A25: Description | B25: Symbol | C25: Unit | D25: Value | E25: Formula ref | F25: Formula | G25: Notes
A26: Temperature difference
A27: temperature difference by preheating or - cooling in the ground | B27: Δϑgnd | C27: K | D27: =(D28-E17)*(1-EXP(-((D31*E6)/(Method_input!E118*Method_input!E119*Method_calculation!D15)))) -> 12.13370381 | E27: Formula (C.1)
A28: temperature of the ground | B28: ϑgnd | C28: °C | D28: =E7+(E8-E7)*EXP(-D29)*COS(2*PI()*(E9/8760)-D29-D30) -> 13.13370381 | E28: Formula (C.2)
A29: factor which takes the ground material an the dept in the ground into account | B29: ξ | C29: m² | D29: =E13*SQRT((PI()*E10*E11)/(E12*8760*3600)) -> 0.6176734818 | E29: Formula (C.3)
A30: time shift factor to correct the time position of the minimal ground temperature factor | B30: ft | C30: - | D30: =PI()*(((2*E14)/8760)+1) -> 3.392633162 | E30: Formula (C.4)
A31: heat transfer coefficient of the ground heat exchanger | B31: Udu | C31: W/(m*K) | D31: =((1/(2*PI()))*(1/E22)*((E16/2)/(E15/2))*(1/D32))^(-1) -> 0.3129163349 | E31: Formula (C.5)
A32: inside surface coefficient | B32: hi | C32: W/(m²*K) | D32: =(4.13+0.23*(E17/100)-0.0077*(E17/100)^2)*((E18^0.75)/(E15^0.25)) -> 15.13595712 | E32: Formula (C.6)
A33: moisture difference
A34: moisture difference by preheating or -cooling in the ground | B34: Δxgnd | C34: kg/kg dry air | D34: =D35-E20 -> 0 | E34: Formula (C.7)
A35: moisture content of the outdoor air leaving the ground heat exchanger | B35: xODA;gnd | C35: kg/kg dry air | D35: =MIN(E20,(0.622*(D36/(E21-D36)))) -> 0.0034 | E35: Formula (C.8)
A36: partial pressure of the outdoor air leaving the ground heat exchanger | B36: pp;ODA;gnd | C36: Pa | D36: =(D37*E19)/100 -> 1507.93655 | E36: Formula (C.9)
A37: saturation pressure of the air leaving the ground heat exchanger | B37: pODA;gnd;sat | C37: Pa | D37: =611.2*EXP((17.62*(E17+D27))/(243.12+(E17+D27))) -> 1507.93655 | E37: Formula (C.10)

Sheet Input_series
A1: Load here the value of input variables for each time-step (time series) Set the number of input data for each time steps and the number of time step before running The macro from sheet "Output series". Local constant data may be input via the sheets "Constants"
A3: Time series for data input
A4: Settings | D4: example with: | E4: 200 m² | F4: V = 200 m² x h = 200 m² x 2,5 m = 500 m³
A5: Number of input data | C5: 48 | E5: h = 2,5 m | F5: q = V x n = 500 m³ x 0,4 h-1 = 200 m³/h-1
A6: Number of time steps | C6: 12 | E6: n = 0,4 h-1
A8: Description | B8: calculation interval | C8: mean external temperature of the calculation interval | D8: internal temperature | E8: mean temperature of the unconditioned duct or air handling unit surrounding | F8: AHU heating coil input | G8: required energy to be supplied by the heat pump for space heating | H8: required energy to be extracted by the heat pump for cooling | I8: required energy from heat pump for domestic hot water | J8: required supply volume flow rate with stage 1 going to the zone | K8: required supply volume flow rate with stage 2 going to the zone | L8: required supply volume flow rate with stage 3 going to the zone | M8: required exhaust volume flow rate with stage 1 from zone | N8: required exhaust volume flow rate with stage 2 from zone | O8: required exhaust volume flow rate with stage 3 from zone | P8: mean return air temperature with stage 1 | Q8: mean return air temperature with stage 2 | R8: mean return air temperature with stage 3 | S8: operating time of the ventilation system with stage 1 | T8: operating time of the ventilation system with stage 2 | U8: operating time of the ventilation system with stage 3 | V8: total time in the time step (e.g. one month) or bin | W8: operating time of the ventilation system in defrosting mode | X8: recirculation air volume flow rate with stage 1 | Y8: recirculation air volume flow rate with stage 2 | Z8: recirculation air volume flow rate with stage 3 | AA8: average difference between outdoor temperature and the defrost mode setpoint during the defrosting period | AB8: mean air temperature difference between inflow and outflow air in a preheating coil with air volume flow rate with stage 1 | AC8: mean air temperature difference between inflow and outflow air in a preheating coil with air volume flow rate with stage 2 | AD8: mean air temperature difference between inflow and outflow air in a preheating coil with air volume flow rate with stage 3 | AE8: correction factor for extract air temperature deviations | AF8: correction factor for mean ventilation mechanical air flow deviations | AG8: correction factor for heating circuit temperature deviations | AH8: heat loss coefficient of the heat pump | AI8: heat loss coefficient of the heat pump for cooling | AJ8: specific power input of a fan m with air volume flow 1 including fan controls according to design | AK8: specific power input of a fan m with air volume flow 2 including fan controls according to design | AL8: specific power input of a fan m with air volume flow 3 including fan controls according to design | AM8: rotation speed with stage 1 | AN8: rotation speed with stage 2 | AO8: rotation speed with stage 3 | AP8: Ventilation flow control factor | AQ8: Exponent for non-linearity of motor and drive | AR8: factor taking into account electrical preheating control, in consideration of type of controller | AS8: Area of the particular zone j | AT8: Area of the net floor | AU8: operating time of the ventilation system in preheating mode | AV8: operating time of the ventilation system in precooling mode | AW8: operating time of the ventilation system in heat recovery mode
A9: Symbol | B9: tci | C9: ϑe | D9: ϑi | E9: ϑsur;nc;m | F9: QH;V;in | G9: QH;V;hp;out;req | H9: QC;V;hp;in;req | I9: QW;V;hp;out;req | J9: qV;SUP;dis;req;1 | K9: qV;SUP;dis;req;2 | L9: qV;SUP;dis;req;3 | M9: qV;ETA;dis;req;1 | N9: qV;ETA;dis;req;2 | O9: qV;ETA;dis;req;3 | P9: ϑETA;1 | Q9: ϑETA;2 | R9: ϑETA;3 | S9: tV;1 | T9: tV;2 | U9: tV;3 | V9: ttotal | W9: tdefrost | X9: qV;rca;1 | Y9: qV;rca;2 | Z9: qV;rca;3 | AA9: ΔTdefrost | AB9: Δϑpreh;1 | AC9: Δϑpreh;2 | AD9: Δϑpreh;3 | AE9: fΔϑ-ETA | AF9: fV | AG9: f∆ϑ –h | AH9: fgen,hp | AI9: fgen,cu | AJ9: SPI1 | AK9: SPI2 | AL9: SPI3 | AM9: nrot,1 | AN9: nrot,2 | AO9: nrot,3 | AP9: fflow,ctrl | AQ9: x | AR9: fdefrost,ctr | AS9: Aj | AT9: Afloor | AU9: tv;preh | AV9: tv;prec | AW9: tv;hr
A10: Unit | B10: mth | C10: °C | D10: °C | E10: °C | F10: kWh | G10: kWh | H10: kWh | I10: kWh | J10: m³/h | K10: m³/h | L10: m³/h | M10: m³/h | N10: m³/h | O10: m³/h | P10: °C | Q10: °C | R10: °C | S10: h | T10: h | U10: h | V10: h | W10: h | X10: m³/h | Y10: m³/h | Z10: m³/h | AA10: K | AB10: K | AC10: K | AD10: K | AE10: - | AF10: - | AG10: - | AH10: - | AI10: - | AJ10: kW/(m³/h) | AK10: kW/(m³/h) | AL10: kW/(m³/h) | AM10: min-1 | AN10: min-2 | AO10: min-3 | AP10: - | AQ10: - | AR10: - | AS10: m² | AT10: m² | AU10: h | AV10: h | AW10: h
A13: Time stamp | D13: VALUES
A14: January | B14: 1 | C14: 1 | D14: 21 | E14: 10 | F14: 0 | G14: 1500 | H14: 0 | I14: 200 | J14: 140 | K14: 200 | L14: 260 | M14: 140 | N14: 200 | O14: 260 | P14: 22 | Q14: 22 | R14: 22 | S14: 248 | T14: 248 | U14: 248 | V14: =31*24 -> 744 | W14: 168 | X14: 0 | Y14: 40 | Z14: 60 | AA14: 2.4 | AB14: 0 | AC14: 0 | AD14: 0 | AE14: 1 | AF14: 1 | AG14: 1 | AH14: 0.02 | AI14: 0.02 | AJ14: 0.0004 | AK14: 0.0005 | AL14: 0.0006 | AP14: 0.65 | AQ14: 2 | AR14: 1
A15: February | B15: 2 | C15: 1.9 | D15: 21 | E15: 10 | F15: 0 | G15: 1500 | H15: 0 | I15: 200 | J15: 140 | K15: 200 | L15: 260 | M15: 140 | N15: 200 | O15: 260 | P15: 22 | Q15: 22 | R15: 22 | S15: 224 | T15: 224 | U15: 224 | V15: =28*24 -> 672 | W15: 168 | X15: 0 | Y15: 40 | Z15: 60 | AA15: 2.4 | AB15: 0 | AC15: 0 | AD15: 0 | AE15: 1 | AF15: 1 | AG15: 1 | AH15: 0.02 | AI15: 0.02 | AJ15: 0.0004 | AK15: 0.0005 | AL15: 0.0006 | AP15: 0.65 | AQ15: 2 | AR15: 1
A16: March | B16: 3 | C16: 4.7 | D16: 21 | E16: 10 | F16: 0 | G16: 1000 | H16: 0 | I16: 200 | J16: 140 | K16: 200 | L16: 260 | M16: 140 | N16: 200 | O16: 260 | P16: 22 | Q16: 22 | R16: 22 | S16: 248 | T16: 248 | U16: 248 | V16: =31*24 -> 744 | W16: 0 | X16: 0 | Y16: 40 | Z16: 60 | AA16: 0 | AB16: 0 | AC16: 0 | AD16: 0 | AE16: 1 | AF16: 1 | AG16: 1 | AH16: 0.02 | AI16: 0.02 | AJ16: 0.0004 | AK16: 0.0005 | AL16: 0.0006 | AP16: 0.65 | AQ16: 2 | AR16: 1
A17: April | B17: 4 | C17: 9.2 | D17: 21 | E17: 10 | F17: 0 | G17: 1000 | H17: 0 | I17: 200 | J17: 140 | K17: 200 | L17: 260 | M17: 140 | N17: 200 | O17: 260 | P17: 22 | Q17: 22 | R17: 22 | S17: 240 | T17: 240 | U17: 240 | V17: =30*24 -> 720 | W17: 0 | X17: 0 | Y17: 40 | Z17: 60 | AA17: 0 | AB17: 0 | AC17: 0 | AD17: 0 | AE17: 1 | AF17: 1 | AG17: 1 | AH17: 0.02 | AI17: 0.02 | AJ17: 0.0004 | AK17: 0.0005 | AL17: 0.0006 | AP17: 0.65 | AQ17: 2 | AR17: 1
A18: May | B18: 5 | C18: 14.1 | D18: 21 | E18: 10 | F18: 0 | G18: 500 | H18: 0 | I18: 200 | J18: 140 | K18: 200 | L18: 260 | M18: 140 | N18: 200 | O18: 260 | P18: 22 | Q18: 22 | R18: 22 | S18: 248 | T18: 248 | U18: 248 | V18: =31*24 -> 744 | W18: 0 | X18: 0 | Y18: 40 | Z18: 60 | AA18: 0 | AB18: 0 | AC18: 0 | AD18: 0 | AE18: 1 | AF18: 1 | AG18: 1 | AH18: 0.02 | AI18: 0.02 | AJ18: 0.0004 | AK18: 0.0005 | AL18: 0.0006 | AP18: 0.65 | AQ18: 2 | AR18: 1
A19: June | B19: 6 | C19: 16.7 | D19: 24 | E19: 18 | F19: 0 | G19: 0 | H19: 500 | I19: 200 | J19: 140 | K19: 200 | L19: 260 | M19: 140 | N19: 200 | O19: 260 | P19: 25 | Q19: 25 | R19: 25 | S19: 240 | T19: 240 | U19: 240 | V19: =30*24 -> 720 | W19: 0 | X19: 0 | Y19: 0 | Z19: 0 | AA19: 0 | AB19: 0 | AC19: 0 | AD19: 0 | AE19: 1 | AF19: 1 | AG19: 1 | AH19: 0.02 | AI19: 0.02 | AJ19: 0.0004 | AK19: 0.0005 | AL19: 0.0006 | AP19: 0.65 | AQ19: 2 | AR19: 1
A20: July | B20: 7 | C20: 19 | D20: 24 | E20: 18 | F20: 0 | G20: 0 | H20: 1000 | I20: 200 | J20: 140 | K20: 200 | L20: 260 | M20: 140 | N20: 200 | O20: 260 | P20: 25 | Q20: 25 | R20: 25 | S20: 248 | T20: 248 | U20: 248 | V20: =31*24 -> 744 | W20: 0 | X20: 0 | Y20: 0 | Z20: 0 | AA20: 0 | AB20: 0 | AC20: 0 | AD20: 0 | AE20: 1 | AF20: 1 | AG20: 1 | AH20: 0.02 | AI20: 0.02 | AJ20: 0.0004 | AK20: 0.0005 | AL20: 0.0006 | AP20: 0.65 | AQ20: 2 | AR20: 1
A21: August | B21: 8 | C21: 18.6 | D21: 24 | E21: 18 | F21: 0 | G21: 0 | H21: 750 | I21: 200 | J21: 140 | K21: 200 | L21: 260 | M21: 140 | N21: 200 | O21: 260 | P21: 25 | Q21: 25 | R21: 25 | S21: 248 | T21: 248 | U21: 248 | V21: =31*24 -> 744 | W21: 0 | X21: 0 | Y21: 0 | Z21: 0 | AA21: 0 | AB21: 0 | AC21: 0 | AD21: 0 | AE21: 1 | AF21: 1 | AG21: 1 | AH21: 0.02 | AI21: 0.02 | AJ21: 0.0004 | AK21: 0.0005 | AL21: 0.0006 | AP21: 0.65 | AQ21: 2 | AR21: 1
A22: September | B22: 9 | C22: 14.3 | D22: 21 | E22: 10 | F22: 0 | G22: 500 | H22: 0 | I22: 200 | J22: 140 | K22: 200 | L22: 260 | M22: 140 | N22: 200 | O22: 260 | P22: 22 | Q22: 22 | R22: 22 | S22: 240 | T22: 240 | U22: 240 | V22: =30*24 -> 720 | W22: 0 | X22: 0 | Y22: 40 | Z22: 60 | AA22: 0 | AB22: 0 | AC22: 0 | AD22: 0 | AE22: 1 | AF22: 1 | AG22: 1 | AH22: 0.02 | AI22: 0.02 | AJ22: 0.0004 | AK22: 0.0005 | AL22: 0.0006 | AP22: 0.65 | AQ22: 2 | AR22: 1
A23: October | B23: 10 | C23: 9.5 | D23: 21 | E23: 10 | F23: 0 | G23: 1000 | H23: 0 | I23: 200 | J23: 140 | K23: 200 | L23: 260 | M23: 140 | N23: 200 | O23: 260 | P23: 22 | Q23: 22 | R23: 22 | S23: 248 | T23: 248 | U23: 248 | V23: =31*24 -> 744 | W23: 0 | X23: 0 | Y23: 40 | Z23: 60 | AA23: 0 | AB23: 0 | AC23: 0 | AD23: 0 | AE23: 1 | AF23: 1 | AG23: 1 | AH23: 0.02 | AI23: 0.02 | AJ23: 0.0004 | AK23: 0.0005 | AL23: 0.0006 | AP23: 0.65 | AQ23: 2 | AR23: 1
A24: November | B24: 11 | C24: 4.1 | D24: 21 | E24: 10 | F24: 0 | G24: 1000 | H24: 0 | I24: 200 | J24: 140 | K24: 200 | L24: 260 | M24: 140 | N24: 200 | O24: 260 | P24: 22 | Q24: 22 | R24: 22 | S24: 240 | T24: 240 | U24: 240 | V24: =30*24 -> 720 | W24: 0 | X24: 0 | Y24: 40 | Z24: 60 | AA24: 0 | AB24: 0 | AC24: 0 | AD24: 0 | AE24: 1 | AF24: 1 | AG24: 1 | AH24: 0.02 | AI24: 0.02 | AJ24: 0.0004 | AK24: 0.0005 | AL24: 0.0006 | AP24: 0.65 | AQ24: 2 | AR24: 1
A25: December | B25: 12 | C25: 0.9 | D25: 21 | E25: 10 | F25: 0 | G25: 1500 | H25: 0 | I25: 200 | J25: 140 | K25: 200 | L25: 260 | M25: 140 | N25: 200 | O25: 260 | P25: 22 | Q25: 22 | R25: 22 | S25: 248 | T25: 248 | U25: 248 | V25: =31*24 -> 744 | W25: 168 | X25: 0 | Y25: 40 | Z25: 60 | AA25: 2.4 | AB25: 0 | AC25: 0 | AD25: 0 | AE25: 1 | AF25: 1 | AG25: 1 | AH25: 0.02 | AI25: 0.02 | AJ25: 0.0004 | AK25: 0.0005 | AL25: 0.0006 | AP25: 0.65 | AQ25: 2 | AR25: 1

Sheet Method_input
A1: THIS IS A MANDATORY SHEET All input data for the method shall be listed here. In the simplest version, values for data input in column D (both green and blue background) may be inserted manually. Varying data (green background) can be fed from the "input_series" sheet. In this sample data sheet, product data (blue background) is linked to a sample catalogue built in the "Detailed_input" sheet
A4: Name | B4: Symbol | C4: Software name | D4: Unit | E4: Value | F4: Range | G4: Origin | H4: Varying | I4: Notes
A5: Operating conditions data
A6: calculation interval | B6: tci | C6: t_ci | D6: mth | E6: 12 | F6: 1…12 | G6: M1-9 | H6: No
A7: mean external temperature of the calculation interval | B7: ϑe | C7: theta_e | D7: °C | E7: 0.9 | F7: -50…+50 | G7: M1-13 | H7: Yes
A8: internal temperature | B8: ϑi | C8: theta_i | D8: °C | E8: 21 | F8: 0…+30 | G8: M2-2 | H8: Yes
A9: mean temperature of the unconditioned duct or air handling unit surrounding | B9: ϑsur,nc;m | C9: theta_sur_nc_m | D9: °C | E9: 10 | F9: -50…+50 | G9: M2-2 | H9: Yes
A10: AHU heating coil input | B10: QH;V;in | C10: Q_H_V_in | D10: kWh | E10: 0 | F10: 0...∞ | G10: M3-1 | H10: Yes
A11: required energy to be supplied by the heat pump for space heating | B11: QH;V;hp;out;req | C11: Q_H_V_hp_out_req | D11: kWh | E11: 1500 | F11: 0...∞ | G11: M2-2 | H11: Yes
A12: required energy to be extracted by the heat pump for cooling | B12: QC;V;hp;in;req | C12: Q_C_V_hp_in_req | D12: kWh | E12: 0 | F12: 0...∞ | G12: M2-2 | H12: Yes
A13: required energy from heat pump for domestic hot water | B13: QW;V;hp;out;req | C13: Q_W_V_hp_out_req | D13: kWh | E13: 200 | F13: 0...∞ | G13: M8-1 | H13: Yes
A14: required supply volume flow rate with stage 1 going to the zone | B14: qV;SUP;dis;req;1 | C14: q_V_SUP_dis_req_1 | D14: m³/h | E14: 140 | F14: 0...∞ | G14: M5-5 | H14: Yes
A15: required supply volume flow rate with stage 2 going to the zone | B15: qV;SUP;dis;req;2 | C15: q_V_SUP_dis_req_2 | D15: m³/h | E15: 200 | F15: 0...∞ | G15: M5-5 | H15: Yes
A16: required supply volume flow rate with stage 3 going to the zone | B16: qV;SUP;dis;req;3 | C16: q_V_SUP_dis_req_3 | D16: m³/h | E16: 260 | F16: 0...∞ | G16: M5-5 | H16: Yes
A17: required exhaust volume flow rate with stage 1 from zone | B17: qV;ETA;dis;req;1 | C17: q_V_ETA_dis_req_1 | D17: m³/h | E17: 140 | F17: 0...∞ | G17: M5-5 | H17: Yes
A18: required exhaust volume flow rate with stage 2 from zone | B18: qV;ETA;dis;req;2 | C18: q_V_ETA_dis_req_2 | D18: m³/h | E18: 200 | F18: 0...∞ | G18: M5-5 | H18: Yes
A19: required exhaust volume flow rate with stage 3 from zone | B19: qV;ETA;dis;req;3 | C19: q_V_ETA_dis_req_3 | D19: m³/h | E19: 260 | F19: 0...∞ | G19: M5-5 | H19: Yes
A20: mean return air temperature with stage 1 | B20: ϑETA;1 | C20: theta_ETA_1 | D20: °C | E20: 22 | F20: 0…+50 | G20: M5-5 | H20: Yes
A21: mean return air temperature with stage 2 | B21: ϑETA;2 | C21: theta_ETA_2 | D21: °C | E21: 22 | F21: 0…+50 | G21: M5-5 | H21: Yes
A22: mean return air temperature with stage 3 | B22: ϑETA;3 | C22: theta_ETA_3 | D22: °C | E22: 22 | F22: 0…+50 | G22: M5-5 | H22: Yes
A23: operating time of the ventilation system with stage 1 | B23: tV;1 | C23: t_V_1 | D23: h | E23: 248 | F23: 0…8760 | G23: Local | H23: Yes
A24: operating time of the ventilation system with stage 2 | B24: tV;2 | C24: t_V_2 | D24: h | E24: 248 | F24: 0…8760 | G24: Local | H24: Yes
A25: operating time of the ventilation system with stage 3 | B25: tV;3 | C25: t_V_3 | D25: h | E25: 248 | F25: 0…8760 | G25: Local | H25: Yes
A26: total time in the time step (e.g. one month) or bin | B26: ttotal | C26: t_total | D26: h | E26: 744 | F26: 0…8760 | G26: - | H26: Yes
A27: operating time of the ventilation system in defrosting mode | B27: tdefrost | C27: t_defrost | D27: h | E27: 168 | F27: 0…8760 | G27: - | H27: Yes
A28: recirculation air volume flow rate with stage 1 | B28: qV;rca;1 | C28: q_V_rca_1 | D28: m³/h | E28: 0 | F28: 0...∞ | G28: Local | H28: Yes
A29: recirculation air volume flow rate with stage 2 | B29: qV;rca;2 | C29: q_V_rca_2 | D29: m³/h | E29: 40 | F29: 0...∞ | G29: Local | H29: Yes
A30: recirculation air volume flow rate with stage 3 | B30: qV;rca;3 | C30: q_V_rca_3 | D30: m³/h | E30: 60 | F30: 0...∞ | G30: Local | H30: Yes
A31: Average difference between outdoor temperature and the defrost mode setpoint during the defrosting period | B31: ΔTdefrost | C31: delta_T_defrost | D31: K | E31: 2.4 | F31: 0…50 | G31: Local | H31: Yes
A32: mean air temperature difference between inflow and outflow air in a preheating coil with air volume flow rate with stage 1 | B32: Δϑpreh;1 | C32: delta_theta_preh_1 | D32: K | E32: 0 | F32: -50…+50 | G32: Local | H32: Yes
A33: mean air temperature difference between inflow and outflow air in a preheating coil with air volume flow rate with stage 2 | B33: Δϑpreh;2 | C33: delta_theta_preh_2 | D33: K | E33: 0 | F33: -50…+50 | G33: Local | H33: Yes
A34: mean air temperature difference between inflow and outflow air in a preheating coil with air volume flow rate with stage 3 | B34: Δϑpreh;3 | C34: delta_theta_preh_3 | D34: K | E34: 0 | F34: -50…+50 | G34: Local | H34: Yes
A35: correction factor for extract air temperature deviations | B35: fΔϑ-ETA | C35: f_delta_theta_ETA | D35: - | E35: 1 | F35: 0,98…1,12 | G35: Local | H35: Yes
A36: correction factor for mean ventilation mechanical air flow deviations | B36: fV | C36: f_V | D36: - | E36: 1 | F36: 0,71…3,55 | G36: Local | H36: Yes
A37: correction factor for heating circuit temperature deviations | B37: fΔϑ-h | C37: f_delta_theta_h | D37: - | E37: 1 | F37: 0,853…1,154 | G37: Local | H37: Yes
A38: heat loss coefficient of the heat pump | B38: fgen,hp | C38: f_gen_hp | D38: - | E38: 0.02 | F38: 0…0,02 | G38: Local | H38: Yes
A39: heat loss coefficient of the heat pump for cooling | B39: fgen,cu | C39: f_gen_cu | D39: - | E39: 0.02 | F39: 0…0,02 | G39: Local | H39: Yes
A40: specific power input of a fan m with air volume flow 1 including fan controls according to design | B40: SPI1 | C40: SPI_1 | D40: kW/(m³/h) | E40: 0.0004 | F40: 0...∞ | G40: prEN 13142 | H40: Yes
A41: specific power input of a fan m with air volume flow 2 including fan controls according to design | B41: SPI2 | C41: SPI_2 | D41: kW/(m³/h) | E41: 0.0005 | F41: 0...∞ | G41: prEN 13142 | H41: Yes
A42: specific power input of a fan m with air volume flow 3 including fan controls according to design | B42: SPI3 | C42: SPI_3 | D42: kW/(m³/h) | E42: 0.0006 | F42: 0...∞ | G42: prEN 13142 | H42: Yes
A43: rotation speed with stage 1 | B43: nrot;1 | C43: n_rot_1 | D43: min-1 | F43: 0...∞ | G43: Local | H43: Yes
A44: rotation speed with stage 2 | B44: nrot;2 | C44: n_rot_2 | D44: min-1 | F44: 0...∞ | G44: Local | H44: Yes
A45: rotation speed with stage 3 | B45: nrot;3 | C45: n_rot_3 | D45: min-1 | F45: 0...∞ | G45: Local | H45: Yes
A46: Ventilation flow control factor | B46: fflow,ctrl | C46: f_flow_ctrl | D46: - | E46: 0.65 | F46: 0…1 | G46: Local | H46: Yes
A47: Exponent for non-linearity of motor and drive | B47: x | C47: x | D47: - | E47: 2 | F47: 1…2 | G47: Local | H47: Yes
A48: factor taking into account electrical preheating control, in consideration of type of controller | B48: fdefrost;ctrl | C48: f_defrost_ctrl | D48: - | E48: 1 | F48: 0,8…3,1 | G48: Local | H48: Yes
A49: Area of the particular zone j | B49: Aj | C49: A_j | D49: m² | F49: 0...∞ | G49: Local | H49: Yes
A50: Area of the net floor | B50: Afloor | C50: A_floor | D50: m² | F50: 0...∞ | G50: Local | H50: Yes
A51: operating time of the ventilation system in preheating mode | B51: tv;preh | C51: t_v_preh | D51: h | F51: 0…8760 | G51: Local | H51: Yes
A52: operating time of the ventilation system in precooling mode | B52: tv;prec | C52: t_v_prec | D52: h | F52: 0…8761 | G52: Local | H52: Yes
A53: operating time of the ventilation system in heat recovery mode | B53: tv;hr | C53: t_v_hr | D53: h | F53: 0…8762 | G53: Local | H53: Yes
A55: Product data
A56: Product description data
A60: Product technical data
A61: duct area | B61: Adu | C61: A_du | D61: m² | E61: 25 | H61: No | I61: EN 14239
A62: limit outdoor air temperature for preheating | B62: ϑe;lim;preh | C62: theta_e_lim_preh | D62: °C | E62: 0 | H62: Yes | I62: EN 13141-7
A63: limit outdoor air temperature for precooling | B63: ϑe;lim;prec | C63: theta_e_lim_prec | D63: °C | E63: 26 | H63: Yes | I63: EN 13141-7
A64: duct leakage factor | B64: flea,du | C64: f_lea_du | D64: - | E64: 1.02 | I64: 6.3.2.2.2
A65: air handling unit leakage factor | B65: flea,ahu | C65: f_lea_ahu | D65: - | E65: 1.04 | I65: 6.3.2.2.3
A66: air handling unit insulation factor | B66: fins,ahu | C66: f_ins_ahu | D66: - | E66: 0.02 | I66: 6.4.2.2
A67: number of stages k | B67: nst | C67: n_st | D67: - | E67: 3 | H67: No
A68: temperature ratio of heat recovery with air volume flow with stage 1 | B68: ηhr;1 | C68: eta_hr_1 | D68: - | E68: 0.8 | H68: No
A69: temperature ratio of heat recovery with air volume flow with stage 2 | B69: ηhr;2 | C69: eta_hr_2 | D69: - | E69: 0.8 | H69: No
A70: temperature ratio of heat recovery with air volume flow with stage 3 | B70: ηhr;3 | C70: eta_hr_3 | D70: - | E70: 0.8 | H70: No
A71: air handling unit surface area | B71: Aahu | C71: A_ahu | D71: m² | E71: 5 | H71: No
A72: air handling unit heat loss coefficient | B72: Uahu | C72: U_ahu | D72: kW/m²K | E72: 0.001 | H72: No
A73: maximum rotation speed of the rotary heat recovery device | B73: nrot,max | C73: n_rot_max | D73: min-1 | E73: 20 | H73: No
A74: Rotor drive power at max. rotation speed | B74: Phr,rot,max | C74: P_hr_rot_max | D74: kW | E74: 0.05 | H74: No
A75: electric power consumption of the control devices (sensors, actuators, controllers) | B75: ∑Pel,V,ctrl | C75: sum_P_el_V_ctrl | D75: kW | E75: 0.01 | H75: No
A76: coefficient of performance of the heat pump for domestic hot water (with stage 1) | B76: COPW;1 | C76: COP_W_1 | D76: - | E76: 3 | H76: No | I76: EN 16147 prEN 16573
A77: coefficient of performance of the heat pump for domestic hot water (with stage 2) | B77: COPW;2 | C77: COP_W_2 | D77: - | E77: 3.2 | H77: No | I77: EN 16147 prEN 16573
A78: coefficient of performance of the heat pump for domestic hot water (with stage 2) | B78: COPW;3 | C78: COP_W_3 | D78: - | E78: 3.4 | H78: No | I78: EN 16147 prEN 16573
A79: power consumption of the heat pump for domestic hot water (with stage 1) | B79: pW;hp;1 | C79: p_W_h_1 | D79: W/(m³/h) | E79: 2 | H79: No | I79: EN 16147 prEN 16573
A80: power consumption of the heat pump for domestic hot water (with stage 2) | B80: pW;hp;2 | C80: p_W_h_2 | D80: W/(m³/h) | E80: 2 | H80: No | I80: EN 16147 prEN 16573
A81: power consumption of the heat pump for domestic hot water (with stage 3) | B81: pW;hp;3 | C81: p_W_h_3 | D81: W/(m³/h) | E81: 2 | H81: No | I81: EN 16147 prEN 16573
A82: coefficient of performance of the heat pump for space heating (with stage 1) | B82: COPH;1 | C82: COP_H_1 | D82: - | E82: 3.5 | H82: No | I82: EN 16147 prEN 16573
A83: coefficient of performance of the heat pump for space heating (with stage 2) | B83: COPH;2 | C83: COP_H_2 | D83: - | E83: 3.7 | H83: No | I83: EN 16147 prEN 16573
A84: coefficient of performance of the heat pump for space heating (with stage 3) | B84: COPH;3 | C84: COP_H_3 | D84: - | E84: 3.9 | H84: No | I84: EN 16147 prEN 16573
A85: power consumption of the heat pump for space heating (with stage 1) | B85: pH;hp;1 | C85: p_H_hp_1 | D85: W/(m³/h) | E85: 2 | H85: No | I85: EN 16147 prEN 16573
A86: power consumption of the heat pump for space heating (with stage 2) | B86: pH;hp;2 | C86: p_H_hp_2 | D86: W/(m³/h) | E86: 2 | H86: No | I86: EN 16147 prEN 16573
A87: power consumption of the heat pump for space heating (with stage 3) | B87: pH;hp;3 | C87: p_H_hp_3 | D87: W/(m³/h) | E87: 2 | H87: No | I87: EN 16147 prEN 16573
A88: energy efficiency ratio of the heat pump for cooling (with stage 1) | B88: EER1 | C88: EER_1 | D88: - | E88: 2.2 | H88: No | I88: EN 16147 prEN 16573
A89: energy efficiency ratio of the heat pump for cooling (with stage 2) | B89: EER2 | C89: EER_2 | D89: - | E89: 2.4 | H89: No | I89: EN 16147 prEN 16573
A90: energy efficiency ratio of the heat pump for cooling (with stage 3) | B90: EER3 | C90: EER_3 | D90: - | E90: 2.6 | H90: No | I90: EN 16147 prEN 16573
A91: power consumption of the heat pump for cooling (with stage 1) | B91: pC;hp;1 | C91: p_C_hp_1 | D91: W/(m³/h) | E91: 2 | H91: No | I91: EN 16147 prEN 16573
A92: power consumption of the heat pump for cooling (with stage 2) | B92: pC;hp;2 | C92: p_C_hp_2 | D92: W/(m³/h) | E92: 2 | H92: No | I92: EN 16147 prEN 16573
A93: power consumption of the heat pump for cooling (with stage 3) | B93: pC;hp;3 | C93: p_C_hp_3 | D93: W/(m³/h) | E93: 2 | H93: No | I93: EN 16147 prEN 16573
A95: pressure difference between duct and ambient air with stage 1 | B95: Δpdu;1 | C95: delta_p_du_1 | D95: Pa | E95: 40 | H95: Yes
A96: pressure difference between duct and ambient air with stage 2 | B96: Δpdu;2 | C96: delta_p_du_2 | D96: Pa | E96: 50 | H96: Yes
A97: pressure difference between duct and ambient air with stage 3 | B97: Δpdu;3 | C97: delta_p_du_3 | D97: Pa | E97: 60 | H97: Yes
A98: air tightness factor of the ductwork with stage 1 | B98: clea;du;1 | C98: c_lea_du_1 | D98: m³/(s*m²*Pa) | E98: 1.02 | H98: No | I98: EN 12237 EN 1507
A99: air tightness factor of the ductwork with stage 2 | B99: clea;du;2 | C99: c_lea_du_2 | D99: m³/(s*m²*Pa) | E99: 1.02 | H99: No | I99: EN 12237 EN 1507
A100: air tightness factor of the ductwork with stage 3 | B100: clea;du;3 | C100: c_lea_du_3 | D100: m³/(s*m²*Pa) | E100: 1.02 | H100: No | I100: EN 12237 EN 1507
A101: pressure difference exponent | B101: ep | C101: e_p | D101: - | E101: 0.67 | H101: Yes
A102: fan efficiency | B102: ηfan | C102: eta_fan | D102: - | E102: 0.35 | F102: 0,2…0,35 | G102: Local | H102: No
A105: System design data
A106: Process design
A107: heat transfer coefficient from the supply duct to the non-conditioned surrounding | B107: Hdu;SUP;nc | C107: H_du_SUP_nc | D107: kW/K | E107: 0.005 | F107: 0...∞ | H107: No
A108: heat transfer coefficient from the extract air duct to the non-conditioned surrounding | B108: Hdu;ETA;nc | C108: H_du_ETA_nc | D108: kW/K | E108: 0.005 | F108: 0...∞ | H108: No
A109: heat transfer coefficient of the supply air duct to the thermal zone | B109: Hdu;SUP;cnd | C109: H_du_SUP_cnd | D109: kW/K | E109: 0.01 | F109: 0...∞ | H109: No
A110: pressure loss of the external defrosting device | B110: Δpdefrost | C110: delta_p_defrost | D110: Pa | E110: 20 | F110: 10…40 | G110: Local | H110: No
A112: Control type data
A116: Constants
A117: standard atmospheric pressure | B117: patm | C117: p_atm | D117: Pa | E117: 101325 | H117: No
A118: air density | B118: ρa | C118: rho_a | D118: kg/m³ | E118: 1.204 | H118: No
A119: specific heat of the air at constant pressure | B119: ca | C119: c_a | D119: kWh/(kg*K) | E119: 0.000279 | H119: No
A120: evaporation heat of water | B120: rW | C120: r_W | D120: kWh/kg | E120: 0.68 | H120: No

Sheet Method_calculation
A1: THIS IS A MANDATORY SHEET One time step calculation shall be described here. For each calculation step (= 1 row) data for the formula in column D shall be taken from the "Method_input" sheet or previous calculation steps. Include in the column "Formula ref" its number in the standard text. The example is based on EN 15316-4-1:2008 Copy and paste a copy of the equation into column "Formula" Use the column note for information on the calculation
A3: Description | B3: Symbol | C3: Unit | D3: Value | E3: Formula ref | F3: Formula | G3: Notes
A4: 6.3.2.2.2 duct leakage factor
A5: duct leakage factor | B5: flea;du | C5: - | D5: - | E5: Formula (1)
A6: supply air flow trough duct leakage with stage 1 | B6: qV;SUP;lea;du;1 | C6: m³/h | D6: =(Method_input!E61*Method_input!E98*(Method_input!E95^Method_input!E101))/3600 -> 0.0838721689 | E6: Formula (2) | G6: generally
A7: supply air flow trough duct leakage with stage 2 | B7: qV;SUP;lea;du;2 | C7: m³/h | D7: =(Method_input!E61*Method_input!E99*(Method_input!E96^Method_input!E101))/3600 -> 0.0973974491 | E7: Formula (2)
A8: supply air flow trough duct leakage with stage 3 | B8: qV;SUP;lea;du;3 | C8: m³/h | D8: =(Method_input!E61*Method_input!E100*(Method_input!E97^Method_input!E101))/3600 -> 0.1100522732 | E8: Formula (2)
A9: 6.3.2.2.3 air handling unit leakage factor
A10: air handling unit leakage factor | B10: flea;ahu | C10: m³/h | D10: - | E10: Formula (3)
A11: 6.4.2.1 volume flow rates
A12: supply volume flow rate with stage 1 going to the zone served by the system | B12: qV;SUP;dis;1 | C12: m³/h | D12: =Method_input!E14*Method_input!E64*Method_input!E65 -> 148.512 | E12: Formula (4) | G12: generally
A13: supply volume flow rate with stage 2 going to the zone served by the system | B13: qV;SUP;dis;2 | C13: m³/h | D13: =Method_input!E15*Method_input!E64*Method_input!E65 -> 212.16 | E13: Formula (4)
A14: supply volume flow rate with stage 3 going to the zone served by the system | B14: qV;SUP;dis;3 | C14: m³/h | D14: =Method_input!E16*Method_input!E64*Method_input!E65 -> 275.808 | E14: Formula (4)
A15: mean supply volume flow rate going to the zone served by the system | B15: qV;SUP;dis | C15: m³/h | D15: =(D12*Method_input!E23+D13*Method_input!E24+D14*Method_input!E25)/Method_input!E26 -> 212.16 | E15: Formula (5)
A16: extract volume flow rate with stage 1 from the zone served by the system | B16: qV;ETA;dis;1 | C16: m³/h | D16: =Method_input!E17*Method_input!E64*Method_input!E65 -> 148.512 | E16: Formula (6) | G16: generally
A17: extract volume flow rate with stage 2 from the zone served by the system | B17: qV;ETA;dis;2 | C17: m³/h | D17: =Method_input!E18*Method_input!E64*Method_input!E65 -> 212.16 | E17: Formula (6)
A18: extract volume flow rate with stage 3 from the zone served by the system | B18: qV;ETA;dis;3 | C18: m³/h | D18: =Method_input!E19*Method_input!E64*Method_input!E65 -> 275.808 | E18: Formula (6)
A19: mean extract volume flow rate from the zone served by the system | B19: qV;ETA;dis | C19: m³/h | D19: =(D16*Method_input!E23+D17*Method_input!E24+D18*Method_input!E25)/Method_input!E26 -> 212.16 | E19: Formula (7)
A20: operating time of the ventilation system | B20: tV | C20: h | D20: =Method_input!E23+Method_input!E24+Method_input!E25 -> 744 | E20: Formula (8)
A21: mean duct leakage volume flow rate with stage 1 to the zone | B21: qV;lea;SUP;dis;1 | C21: m³/h | D21: =(Method_input!E64-1)*Method_calculation!D12 -> 2.97024 | E21: Formula (9) | G21: generally
A22: mean duct leakage volume flow rate with stage 2 to the zone | B22: qV;lea;SUP;dis;2 | C22: m³/h | D22: =(Method_input!E64-1)*Method_calculation!D13 -> 4.2432 | E22: Formula (9)
A23: mean duct leakage volume flow rate with stage 3 to the zone | B23: qV;lea;SUP;dis;3 | C23: m³/h | D23: =(Method_input!E64-1)*Method_calculation!D14 -> 5.51616 | E23: Formula (9)
A24: mean duct leakage volume flow rate with stage 1 from the zone | B24: qV;lea;ETA;dis;1 | C24: m³/h | D24: =(Method_input!E64-1)*Method_calculation!D16 -> 2.97024 | E24: Formula (10) | G24: generally
A25: mean duct leakage volume flow rate with stage 2 from the zone | B25: qV;lea;ETA;dis;2 | C25: m³/h | D25: =(Method_input!E64-1)*Method_calculation!D17 -> 4.2432 | E25: Formula (10)
A26: mean duct leakage volume flow rate with stage 3 from the zone | B26: qV;lea;ETA;dis;3 | C26: m³/h | D26: =(Method_input!E64-1)*Method_calculation!D18 -> 5.51616 | E26: Formula (10)
A27: 6.4.2.2 supply air temperature
A28: mean supply air temperature going to the supply air ductwork with stage 1 | B28: ϑSUP;dis;in;1 | C28: °C | D28: =Method_input!E7+Method_input!E32+Method_calculation!D31+Method_calculation!D37+Method_calculation!D40 -> 17.1867369 | E28: Formula (11) | G28: generally | J28: =Method_input!E7+Method_input!E32 -> 0.9 | K28: =Method_input!E7+Method_input!E32+Method_calculation!D31 -> 17.1867369 | L28: =Method_input!E7+Method_input!E32+Method_calculation!D31+Method_calculation!D37 -> 17.1867369 | M28: =Method_input!E7+Method_input!E32+Method_calculation!D31+Method_calculation!D37+Method_calculation!D40 -> 17.1867369 | N28: k=1
A29: mean supply air temperature going to the supply air ductwork with stage 2 | B29: ϑSUP;dis;in;2 | C29: °C | D29: =Method_input!E7+Method_input!E33+Method_calculation!D32+Method_calculation!D38+Method_calculation!D41 -> 17.8952397 | E29: Formula (11) | J29: =Method_input!E7+Method_input!E33 -> 0.9 | K29: =Method_input!E7+Method_input!E33+Method_calculation!D32 -> 16.94153145 | L29: =Method_input!E7+Method_input!E33+Method_calculation!D32+Method_calculation!D38 -> 17.8952397 | M29: =Method_input!E7+Method_input!E33+Method_calculation!D32+Method_calculation!D38+Method_calculation!D41 -> 17.8952397 | N29: k=2
A30: mean supply air temperature going to the supply air ductwork with stage 3 | B30: ϑSUP;dis;in;3 | C30: °C | D30: =Method_input!E7+Method_input!E34+Method_calculation!D33+Method_calculation!D39+Method_calculation!D42 -> 17.93623882 | E30: Formula (11) | J30: =Method_input!E7+Method_input!E34 -> 0.9 | K30: =Method_input!E7+Method_input!E34+Method_calculation!D33 -> 16.80641198 | L30: =Method_input!E7+Method_input!E34+Method_calculation!D33+Method_calculation!D39 -> 17.93623882 | M30: =Method_input!E7+Method_input!E34+Method_calculation!D33+Method_calculation!D39+Method_calculation!D42 -> 17.93623882 | N30: k=3
A31: mean air temperature difference for heat recovery with air volume flow rate with stage 1 | B31: Δϑhr;1 | C31: K | D31: =(Method_input!E68-(Method_input!E65-1)-Method_input!E66)*(D55-D34) -> 16.2867369 | E31: Formula (12) | G31: generally
A32: mean air temperature difference for heat recovery with air volume flow rate with stage 2 | B32: Δϑhr;2 | C32: K | D32: =(Method_input!E69-(Method_input!E65-1)-Method_input!E66)*(D56-D35) -> 16.04153145 | E32: Formula (12)
A33: mean air temperature difference for heat recovery with air volume flow rate with stage 3 | B33: Δϑhr;3 | C33: K | D33: =(Method_input!E70-(Method_input!E65-1)-Method_input!E66)*(D57-D36) -> 15.90641198 | E33: Formula (12)
A34: mean air temperature after preheating with air volume flow rate with stage 1 | B34: ϑODA;preh;1 | C34: °C | D34: =Method_input!E7+Method_input!E32 -> 0.9 | E34: Formula (13) | G34: generally
A35: mean air temperature after preheating with air volume flow rate with stage 2 | B35: ϑODA;preh;2 | C35: °C | D35: =Method_input!E7+Method_input!E33 -> 0.9 | E35: Formula (13)
A36: mean air temperature after preheating with air volume flow rate with stage 3 | B36: ϑODA;preh;3 | C36: °C | D36: =Method_input!E7+Method_input!E34 -> 0.9 | E36: Formula (13)
A37: mean air temperature difference for recirculation with air volume flow rate with stage 1 | B37: Δϑrca;1 | C37: K | D37: =((Method_input!E28)/D12)*(Method_input!E20-(D34+D31)) -> 0 | E37: Formula (14) | G37: generally
A38: mean air temperature difference for recirculation with air volume flow rate with stage 2 | B38: Δϑrca;2 | C38: K | D38: =(Method_input!E29/D13)*(Method_input!E21-(D35+D32)) -> 0.9537082481 | E38: Formula (14) | G38: qV;rca;k as defined in Input_series! qV;out;k = qV;SUP;dis;k
A39: mean air temperature difference for recirculation with air volume flow rate with stage 3 | B39: Δϑrca;3 | C39: K | D39: =(Method_input!E30/D14)*(Method_input!E22-(D36+D33)) -> 1.129826841 | E39: Formula (14)
A40: mean air temperature difference between inflow and outflow air in a reheating device, e.g. air-to-air heatpump or coil with air volume flow rate with stage 1 | B40: Δϑrh;1 | C40: K | D40: =(Method_input!E10)/(Method_calculation!D12*(Method_input!E118*Method_input!E119)*Method_input!E26) -> 0 | E40: Formula (15) | G40: generally
A41: mean air temperature difference between inflow and outflow air in a reheating device, e.g. air-to-air heatpump or coil with air volume flow rate with stage 2 | B41: Δϑrh;2 | C41: K | D41: =(Method_input!E10)/(Method_calculation!D13*(Method_input!E118*Method_input!E119)*Method_input!E26) -> 0 | E41: Formula (15)
A42: mean air temperature difference between inflow and outflow air in a reheating device, e.g. air-to-air heatpump or coil with air volume flow rate with stage 3 | B42: Δϑrh;3 | C42: K | D42: =(Method_input!E10)/(Method_calculation!D14*(Method_input!E118*Method_input!E119)*Method_input!E26) -> 0 | E42: Formula (15)
A43: mean supply air temperature with volume flow rate with stage 1 leaving the air distribution system and going to the zone | B43: ϑSUP;dis;out;1 | C43: °C | D43: =D28-D46 -> 17.31848743 | E43: Formula (16) | G43: generally
A44: mean supply air temperature with volume flow rate with stage 2 leaving the air distribution system and going to the zone | B44: ϑSUP;dis;out;2 | C44: °C | D44: =D29-D47 -> 17.83680499 | E44: Formula (16)
A45: mean supply air temperature with volume flow rate with stage 3 leaving the air distribution system and going to the zone | B45: ϑSUP;dis;out;3 | C45: °C | D45: =D30-D48 -> 17.87541719 | E45: Formula (16)
A46: mean air temperature drop in the supply ductwork air with volume flow rate with stage 1 | B46: Δϑdu;1 | C46: K | D46: =D49+D52 -> -0.1317505356 | E46: Formula (17) | G46: generally
A47: mean air temperature drop in the supply ductwork air with volume flow rate with stage 2 | B47: Δϑdu;2 | C47: K | D47: =D50+D53 -> 0.05843470878 | E47: Formula (17)
A48: mean air temperature drop in the supply ductwork air with volume flow rate with stage 3 | B48: Δϑdu;3 | C48: K | D48: =D51+D54 -> 0.06082162367 | E48: Formula (17)
A49: temperature drop due to the heat losses of the supply duct section j to the non-conditioned space with stage 1 | B49: ΔϑSUP,du;nc;j;1 | C49: K | D49: =(D28-Method_input!E9)*(1-EXP(-(Method_input!E107/((Method_input!E118*Method_input!E119)*Method_calculation!D12)))) -> 0.6853739653 | E49: Formula (18) | G49: generally
A50: temperature drop due to the heat losses of the supply duct section j to the non-conditioned space with stage 2 | B50: ΔϑSUP,du;nc;j;2 | C50: K | D50: =(D29-Method_input!E9)*(1-EXP(-(Method_input!E107/((Method_input!E118*Method_input!E119)*Method_calculation!D13)))) -> 0.534928362 | E50: Formula (18)
A51: temperature drop due to the heat losses of the supply duct section j to the non-conditioned space with stage 3 | B51: ΔϑSUP,du;nc;j;3 | C51: K | D51: =(D30-Method_input!E9)*(1-EXP(-(Method_input!E107/((Method_input!E118*Method_input!E119)*Method_calculation!D14)))) -> 0.4169471286 | E51: Formula (18)
A52: temperature drop due to heat losses of the supply duct section i to an conditioned zone with stage 1 | B52: ΔϑSUP;du;cnd;i;1 | C52: K | D52: =(D28-D49-Method_input!E8)*(1-EXP(-(Method_input!E109/((Method_input!E118*Method_input!E119)*Method_calculation!D12)))) -> -0.8171245009 | E52: Formula (19) | G52: generally
A53: temperature drop due to heat losses of the supply duct section i to an conditioned zone with stage 2 | B53: ΔϑSUP;du;cnd;i;2 | C53: K | D53: =(D29-D50-Method_input!E8)*(1-EXP(-(Method_input!E109/((Method_input!E118*Method_input!E119)*Method_calculation!D13)))) -> -0.4764936532 | E53: Formula (19) | G53: Note: theta_SUP_du_in_k is generally the temperature at the exit of the preceding duct sequence. If the duct sequence is the first in the system, it is equal to theta_SUP_dis_in_k. If the duct sequence is the last in the system, it is equal to theta_SUP_dis_out_k .
A54: temperature drop due to heat losses of the supply duct section i to an conditioned zone with stage 3 | B54: ΔϑSUP;du;cnd;i;3 | C54: K | D54: =(D30-D51-Method_input!E8)*(1-EXP(-(Method_input!E109/((Method_input!E118*Method_input!E119)*Method_calculation!D14)))) -> -0.356125505 | E54: Formula (19)
A55: extract air temperature modified in the duct with stage 1 | B55: ϑETA;dis;out;1 | C55: °C | D55: =((1/Method_input!E64)*Method_input!E20)+(((Method_input!E64-1)/Method_input!E64)*Method_input!E9)+D58 -> 22.90910392 | E55: Formula (19b) | G55: generally
A56: extract air temperature modified in the duct with stage 2 | B56: ϑETA;dis;out;2 | C56: °C | D56: =((1/Method_input!E64)*Method_input!E21)+(((Method_input!E64-1)/Method_input!E64)*Method_input!E9)+D59 -> 22.57774521 | E56: Formula (19b)
A57: extract air temperature modified in the duct with stage 3 | B57: ϑETA;dis;out;3 | C57: °C | D57: =((1/Method_input!E64)*Method_input!E22)+(((Method_input!E64-1)/Method_input!E64)*Method_input!E9)+D60 -> 22.39515132 | E57: Formula (19b)
A58: temperature difference due to the extract duct heat losses to the non-conditioned space with stage 1 | B58: Δϑdu;ETA;1 | C58: K | D58: =(Method_input!E20-Method_input!E9)*(1-EXP(-(Method_input!E108/((Method_input!E118*Method_input!E119)*Method_calculation!D16)))) -> 1.144398035 | E58: Formula (19c) | G58: generally
A59: temperature difference due to the extract duct heat losses to the non-conditioned space with stage 2 | B59: Δϑdu;ETA;2 | C59: K | D59: =(Method_input!E21-Method_input!E9)*(1-EXP(-(Method_input!E108/((Method_input!E118*Method_input!E119)*Method_calculation!D17)))) -> 0.8130393234 | E59: Formula (19c)
A60: temperature difference due to the extract duct heat losses to the non-conditioned space with stage 3 | B60: Δϑdu;ETA;3 | C60: K | D60: =(Method_input!E22-Method_input!E9)*(1-EXP(-(Method_input!E108/((Method_input!E118*Method_input!E119)*Method_calculation!D18)))) -> 0.6304454363 | E60: Formula (19c)
A61: outdoor air fraction with stage 1 | B61: fODA;1 | C61: - | D61: =((D34+D31+D37)-(D55))/((D34+D31)-(D55)) -> 1 | E61: Formula (20) | G61: generally
A62: outdoor air fraction with stage 2 | B62: fODA;2 | C62: - | D62: =((D35+D32+D38)-(D56))/((D35+D32)-(D56)) -> 0.8307891982 | E62: Formula (20)
A63: outdoor air fraction with stage 3 | B63: fODA;3 | C63: - | D63: =((D36+D33+D39)-(D57))/((D36+D33)-(D57)) -> 0.7978386946 | E63: Formula (20)
A64: outdoor air fraction | B64: fODA | C64: - | D64: =((D61*Method_input!E23)+(D62*Method_input!E24)+(D63*Method_input!E25))/Method_input!E26 -> 0.8762092976 | E64: Formula (20h)
A65: 6.4.3.2 distribution heat losses
A66: heat losses of the ductwork in the current calculation interval | B66: Qls;V;dis | C66: kWh | D66: =(Method_input!E118*Method_input!E119)*(((D12*D49+D21*(D28-Method_input!E9))*Method_input!E23)+((D13*D50+D22*(D29-Method_input!E9))*Method_input!E24)+((D14*D51+D23*(D30-Method_input!E9))*Method_input!E25)) -> 35.73036029 | E66: Formula (25)
A67: recoverable heat losses of the ductwork in the current calculation interval | B67: Qls;V;dis;rbl | C67: kWh | D67: 0 | E67: Formula (26)
A68: 6.4.3.3 generation heat losses
A69: generation heat losses of the air handling unit | B69: Qls;V;gen | C69: kWh | D69: =D70+Method_input!E38*(IF(Method_calculation!D102="true",Method_calculation!D103,Method_calculation!D110)+IF(Method_calculation!D118="true",Method_calculation!D119,Method_calculation!D126))+Method_input!E39*(IF(Method_calculation!D134="true",Method_calculation!D135,Method_calculation!D142)) -> 25.55747351 | E69: Formula (27)
A70: heat losses through casing of the air handling unit | B70: Qls;V;ahu | C70: kWh | D70: =(Method_input!E71*Method_input!E72)*(Method_calculation!D71-Method_input!E9)*D20 -> 6.560840274 | E70: Formula (28)
A71: mean air temperature in the air handling unit | B71: ϑa;m | C71: °C | D71: =(0.5*((((Method_input!E7+Method_input!E32)+MAX(Method_calculation!D28,D55))*Method_input!E23)+(((Method_input!E7+Method_input!E33)+MAX(Method_calculation!D29,D56))*Method_input!E24)+(((Method_input!E7+Method_input!E34)+MAX(Method_calculation!D30,D57))*Method_input!E25)))/Method_calculation!D20 -> 11.76366674 | E71: Formula (29)
A72: recoverable heat losses of the air handling unit in the current calculation interval | B72: Qls;V;gen;rbl | C72: kWh | D72: =D69 -> 25.55747351 | E72: Formula (30) | G72: Note: If the air handling unit is an unconditioned space Q_ls_V_gen_rbl is 0.
A73: 6.4.3.4 fan
A74: fan energy required by the fans for distributing the air through the ventilation ductwork in the current calculation interval for a fan m | B74: EV;gen;fan | C74: kWh | D74: =(Method_input!E23*Method_calculation!D12*(Method_input!E40+((2.78*10^(-7)*Method_input!E110)/Method_input!E102)))+(Method_input!E24*Method_calculation!D13*(Method_input!E41+((2.78*10^(-7)*Method_input!E110)/Method_input!E102)))+Method_input!E25*Method_calculation!D14*(Method_input!E42+((2.78*10^(-7)*Method_input!E110)/Method_input!E102)) -> 84.58797378 | E74: Formula (31)
A75: fan energy required by the fans for distributing the air through the ventilation ductwork in the current calculation interval | B75: EV;gen;fan | C75: kWh | D75: =Method_calculation!D20*((AVERAGE(Method_input!E40:E42))+(((2.78*10^(-7))*Method_input!E110)/Method_input!E102))*MAX(Method_calculation!D12:D14)*(Method_input!E46^(Method_input!E47)) -> 44.72599486 | E75: Formula (31a) | G75: Note: If only one SPI value is available (with reference air volume flow according EN 13142) then the fan energy required in the current calculation interval for fan m is calculated with formula (31a).
A76: 6.4.3.5 auxiliary energy
A77: auxiliary energy in the current calculation interval | B77: WV;aux | C77: kWh | D77: =D78+D79+D80 -> 32.12439036 | E77: Formula (32) | F77: Wv,aux = WV;aux;hr + WV;aux;preh + WV;aux;ctrl
A78: auxiliary energy required by the heat recovery in the current calculation interval | B78: WV;aux;hr | C78: kWh | D78: =(Method_input!E23*Method_input!E74*(Method_input!E43/Method_input!E73))+(Method_input!E24*Method_input!E74*(Method_input!E44/Method_input!E73))+(Method_input!E25*Method_input!E74*(Method_input!E45/Method_input!E73)) -> 0 | E78: Formula (33)
A79: auxiliary energy required by the preheating in the current calculation interval | B79: WV;aux;preh | C79: kWh | D79: =(Method_input!E118*Method_input!E119)*(Method_calculation!D15/Method_input!E64)*Method_calculation!D64*Method_input!E27*Method_input!E31*Method_input!E48 -> 24.68439036 | E79: Formula (34)
A80: auxiliary energy required by the control components in the current calculation interval | B80: WV;aux;ctrl | C80: kWh | D80: =(Method_input!E23*Method_input!E75)+(Method_input!E24*Method_input!E75)+(Method_input!E25*Method_input!E75) -> 7.44 | E80: Formula (35)
A81: 6.4.3.6 preheating and precooling
A82: operting time of the ventilation system with stage 1 in preheating mode | B82: tv;preh;1 | C82: h | D82: =Method_input!E23/Method_calculation!D20*Method_input!E51 -> 0
A83: operting time of the ventilation system with stage 2 in preheating mode | B83: tv;preh;2 | C83: h | D83: =Method_input!E24/Method_calculation!D20*Method_input!E51 -> 0
A84: operting time of the ventilation system with stage 3 in preheating mode | B84: tv;preh;3 | C84: h | D84: =Method_input!E25/Method_calculation!D20*Method_input!E51 -> 0
A85: energy transferred from enviroment by ground heat exchanger or solar air panel for preheating in the current calculation interval | B85: Qpreh | C85: kWh | D85: =(Method_input!E118*Method_input!E119)*Method_calculation!D64*(((Method_calculation!D15/Method_input!E64)*Method_input!E32*D82)+((Method_calculation!D15/Method_input!E64)*Method_input!E33*D83)+((Method_calculation!D15/Method_input!E64)*Method_input!E34*D84)) -> 0 | E85: Formula (36) | G85: Note:operating time of the ventilation system with stage k in preheating mode (with tv;preh;k = tdefrost if preheating only practice for defrosting or with ϑe < ϑe;lim;preh)n all other cases) in the current calculation interval or bin
A86: operting time of the ventilation system with stage 1 in precooling mode | B86: tv;prec;1 | C86: h | D86: =Method_input!E23/Method_calculation!D20*Method_input!E52 -> 0
A87: operting time of the ventilation system with stage 2 in precooling mode | B87: tv;prec;2 | C87: h | D87: =Method_input!E24/Method_calculation!D20*Method_input!E52 -> 0
A88: operting time of the ventilation system with stage 3 in precooling mode | B88: tv;prec;3 | C88: h | D88: =Method_input!E25/Method_calculation!D20*Method_input!E52 -> 0
A89: energy transferred from enviroment by ground heat exchanger for precooling in the current calculation interval | B89: Qpreh | C89: kWh | D89: =(Method_input!E118*Method_input!E119)*Method_calculation!D64*(((Method_calculation!D15/Method_input!E64)*Method_input!E32*Method_input!E23)+((Method_calculation!D15/Method_input!E64)*Method_input!E33*Method_input!E24)+((Method_calculation!D15/Method_input!E64)*Method_input!E34*Method_input!E25)) -> 0 | E89: Formula (37) | G89: Note:operating time of the ventilation system with stage k in precooling mode (with ϑe > ϑe;lim;prec) in the current calculation interval or bin
A90: 6.4.3.7 heat recovery
A91: operting time of the ventilation system with stage 1 in heat recovery mode | B91: tv;hr;1 | C91: h | D91: =Method_input!E23/Method_calculation!D20*Method_input!E53 -> 0
A92: operting time of the ventilation system with stage 2 in heat recovery mode | B92: tv;hr;2 | C92: h | D92: =Method_input!E24/Method_calculation!D20*Method_input!E53 -> 0
A93: operting time of the ventilation system with stage 3 in heat recovery mode | B93: tv;hr;3 | C93: h | D93: =Method_input!E25/Method_calculation!D20*Method_input!E53 -> 0
A94: energy transferred by the heat recovery in the current calculation interval | B94: Qhr | C94: kWh | D94: =(Method_input!E118*Method_input!E119)*Method_calculation!D64*(((Method_calculation!D15/Method_input!E64)*D31*D91)+((Method_calculation!D15/Method_input!E64)*D32*D92)+((Method_calculation!D15/Method_input!E64)*D33*D93)) -> 0 | E94: Formula (38) | G94: Note: operating time of the ventilation system with stage k in heat recovery mode (except for time, when the heat exchanger is bypassed, it is used if there are useable gains of heat) in current calculation interval or bin. If there is no Bypass: tv;hr;k =tv;k
A95: 6.4.3.8 recirculation
A96: energy transferred by the recirculation, if present, in the current calculation interval | B96: Qrca | C96: kWh | D96: =(Method_input!E118*Method_input!E119)*(((D15/Method_input!E64)*D37*Method_input!E23)+((D15/Method_input!E64)*D38*Method_input!E24)+((D15/Method_input!E64)*D39*Method_input!E25)) -> 36.10326881 | E96: Formula (39)
A97: 6.4.3.9 heating
A98: required energy supplied by the reheating device, e.g. air-to-air heatpump or coil, if present, in the current calculation interval | B98: QH;V;in;req | C98: kWh | D98: =(Method_input!E118*Method_input!E119)*(((Method_calculation!D15/Method_input!E64)*Method_calculation!D40*D91)+((Method_calculation!D15/Method_input!E64)*Method_calculation!D41*D92)+((Method_calculation!D15/Method_input!E64)*Method_calculation!D42*D93)) -> 0 | E98: Formula (40) | G98: Note: operating time of the ventilation system with stage k in reheating mode (except for time, when the heat exchanger is bypassed) in current calculation interval or bin tv;rh;k =tv;hr;k
A99: 6.4.3.10.1 energy output
A100: domestic hot water
A101: maximum energy output of the heat pump to the domestic hot water heating system in current calculation interval | B101: QW;V;hp;out;max | C101: kWh | D101: =(Method_input!E35*Method_input!E36*((Method_input!E79*Method_input!E76*D16*Method_input!E23)+(Method_input!E80*Method_input!E77*D17*Method_input!E24)+(Method_input!E81*Method_input!E78*D18*Method_input!E25)))/1000 -> 1022.848819 | E101: Formula (41)
A102: case a) QW;V;hp;out;req > QW;V;hp;out;max | C102: true or false | D102: =IF(Method_input!E13>Method_calculation!D101,"true","false") -> false
A103: heat generator output of the heat pump to the domestic hot water system | B103: QW;V;gen;hp;out | C103: kWh | D103: =D101 -> 1022.848819 | E103: Formula (42a)
A104: residual heat demand required for domestic hot water | B104: Q*W;out | C104: kWh | D104: =Method_input!E13-Method_calculation!D103 -> -822.8488192 | E104: Formula (43a)
A105: operating time of the heat pump used for domestic hot water | B105: ton;W | C105: h | D105: =Method_input!E23+Method_input!E24+Method_input!E25 -> 744 | E105: Formula (44a)
A106: operating time of the heat pump used for domestic hot water with stage 1 | B106: ton;W;1 | C106: h | D106: =Method_input!E23 -> 248 | E106: Formula (45a)
A107: operating time of the heat pump used for domestic hot water with stage 2 | B107: ton;W;2 | C107: h | D107: =Method_input!E24 -> 248 | E107: Formula (45a)
A108: operating time of the heat pump used for domestic hot water with stage 3 | B108: ton;W;3 | C108: h | D108: =Method_input!E25 -> 248 | E108: Formula (45a)
A109: case b) QW;V;hp;out;req ≤ QW;V;hp;out;max | C109: true or false | D109: =IF(Method_input!E13<=Method_calculation!D101,"true","false") -> true
A110: heat generator output of the heat pump to the domestic hot water system | B110: QW;V;gen;hp;out | C110: kWh | D110: =Method_input!E13 -> 200 | E110: Formula (42b)
A111: residual heat demand required for domestic hot water | B111: Q*W;out | C111: kWh | D111: =0 -> 0 | E111: Formula (43b)
A112: operating time of the heat pump used for domestic hot water | B112: ton;W | C112: h | D112: =(D110/D101)*D105 -> 145.4760442 | E112: Formula (44b)
A113: operating time of the heat pump used for domestic hot water with stage 1 | B113: ton;W;1 | C113: h | D113: =(D110/D101)*Method_input!E23 -> 48.49201472 | E113: Formula (45b)
A114: operating time of the heat pump used for domestic hot water with stage 2 | B114: ton;W;2 | C114: h | D114: =(D110/D101)*Method_input!E24 -> 48.49201472 | E114: Formula (45b)
A115: operating time of the heat pump used for domestic hot water with stage 3 | B115: ton;W;3 | C115: h | D115: =(D110/D101)*Method_input!E25 -> 48.49201472 | E115: Formula (45b)
A116: space heating
A117: maximum energy output in current calculation interval of the extract air heat pump to the heating system | B117: QH;V;hp;out;max | C117: kWh | D117: =(Method_input!E35*Method_input!E37*Method_input!E36*(((Method_input!E85/1000)*Method_calculation!D16*Method_input!E82*(Method_input!E23-IF(Method_calculation!D102="true",Method_calculation!D106,Method_calculation!D113)))+((Method_input!E86/1000)*Method_calculation!D17*Method_input!E83*(Method_input!E24-IF(Method_calculation!D102="true",Method_calculation!D107,Method_calculation!D114)))+((Method_input!E87/1000)*Method_calculation!D18*Method_input!E84*(Method_input!E25-IF(Method_calculation!D102="true",Method_calculation!D108,Method_calculation!D115)))))-IF(D102="true",D103,D110) -> 749.8316617 | E117: Formula (46)
A118: case a) QH;V;hp;out;req > QH;V;hp;out;max | C118: true or false | D118: =IF(Method_input!E11>Method_calculation!D117,"true","false") -> true
A119: heat generator output of the heat pump to the space heating system | B119: QH;V;gen;hp;out | C119: kWh | D119: =D117 -> 749.8316617 | E119: Formula (47a)
A120: residual heat demand required for space heating | B120: Q*H;out | C120: kWh | D120: =Method_input!E11-Method_calculation!D119 -> 750.1683383 | E120: Formula (48a)
A121: operating time of the heat pump used for space heating | B121: ton;H | C121: h | D121: =(Method_input!E23-IF(Method_calculation!D102="true",D106,D113))+(Method_input!E24-IF(Method_calculation!D102="true",D107,D114))+(Method_input!E25-IF(Method_calculation!D102="true",D108,D115)) -> 598.5239558 | E121: Formula (49a)
A122: operating time of the heat pump used for space heating with stage 1 | B122: ton;H;1 | C122: h | D122: =Method_input!E23-IF(D102="true",D106,D113) -> 199.5079853 | E122: Formula (50a)
A123: operating time of the heat pump used for space heating with stage 2 | B123: ton;H;2 | C123: h | D123: =Method_input!E24-IF(D102="true",D107,D114) -> 199.5079853 | E123: Formula (50a)
A124: operating time of the heat pump used for space heating with stage 3 | B124: ton;H;3 | C124: h | D124: =Method_input!E25-IF(D102="true",D108,D115) -> 199.5079853 | E124: Formula (50a)
A125: case b) QH;V;hp;out;req ≤ QH;V;hp;out;max | C125: true or false | D125: =IF(Method_input!E11<=Method_calculation!D117,"true","false") -> false
A126: heat generator output of the heat pump to the space heating system | B126: QH;V;gen;hp;out | C126: kWh | D126: =Method_input!E11 -> 1500 | E126: Formula (47b)
A127: residual heat demand required for space heating | B127: Q*H;out | C127: kWh | D127: =0 -> 0 | E127: Formula (48b)
A128: operating time of the heat pump used for space heating | B128: ton;H | C128: h | D128: =(D126/D117)*((Method_input!E23-IF(Method_calculation!D102="true",Method_calculation!D106,Method_calculation!D113))+(Method_input!E24-IF(Method_calculation!D102="true",Method_calculation!D107,Method_calculation!D114))+(Method_input!E25-IF(Method_calculation!D102="true",Method_calculation!D108,Method_calculation!D115))) -> 1197.316651 | E128: Formula (49b)
A129: operating time of the heat pump used for space heating with stage 1 | B129: ton;H;1 | C129: h | D129: =(D126/D117)*(Method_input!E23-IF(D102="true",D106,D113)) -> 399.1055502 | E129: Formula (50b)
A130: operating time of the heat pump used for space heating with stage 2 | B130: ton;H;2 | C130: h | D130: =(D126/D117)*(Method_input!E24-IF(D102="true",D107,D114)) -> 399.1055502 | E130: Formula (50b)
A131: operating time of the heat pump used for space heating with stage 3 | B131: ton;H;3 | C131: h | D131: =(D126/D117)*(Method_input!E25-IF(D102="true",D108,D115)) -> 399.1055502 | E131: Formula (50b)
A132: space cooling
A133: maximum energy output in current calculation interval of the extract air heat pump to the cooling system | B133: QC;V;hp;in;max | C133: kWh | D133: =(((Method_input!E91/1000)*Method_input!E88*Method_calculation!D16*(Method_input!E23-IF(Method_calculation!D102="true",Method_calculation!D106,Method_calculation!D113)))+((Method_input!E92/1000)*Method_input!E89*Method_calculation!D17*(Method_input!E24-IF(D102="true",D107,D114)))+((Method_input!E93/1000)*Method_input!E90*D18*(Method_input!E25-IF(D102="true",D108,D115)))) -> 619.6762712 | E133: Formula (51)
A134: case a) QC;V;hp;in;req > QC;V;hp;in;max | C134: true or false | D134: =IF(Method_input!E12>Method_calculation!D133,"true","false") -> false
A135: heat generator output of the heat pump to the space cooling system | B135: QC;V;gen;hp;in | C135: kWh | D135: =D133 -> 619.6762712 | E135: Formula (52a)
A136: residual heat demand required for space cooling | B136: Q*C;in | C136: kWh | D136: =Method_input!E12-Method_calculation!D135 -> -619.6762712 | E136: Formula (53a)
A137: operating time of the heat pump used for space cooling | B137: ton;C | C137: h | D137: =(Method_input!E23-IF(D102="true",D106,D113))+(Method_input!E24-IF(D102="true",D107,D114))+(Method_input!E25-IF(D102="true",D108,D115)) -> 598.5239558 | E137: Formula (54a)
A138: operating time of the heat pump used for space cooling with stage 1 | B138: ton;C;1 | C138: h | D138: =Method_input!E23-IF(D102="true",Method_calculation!D106,Method_calculation!D113) -> 199.5079853 | E138: Formula (55a)
A139: operating time of the heat pump used for space cooling with stage 2 | B139: ton;C;2 | C139: h | D139: =Method_input!E24-IF(D102="true",Method_calculation!D107,Method_calculation!D114) -> 199.5079853 | E139: Formula (55a)
A140: operating time of the heat pump used for space cooling with stage 3 | B140: ton;C;3 | C140: h | D140: =Method_input!E25-IF(D102="true",Method_calculation!D108,Method_calculation!D115) -> 199.5079853 | E140: Formula (55a)
A141: case b) QC;V;hp;in;req ≤ QC;V;hp;in;max | C141: true or false | D141: =IF(Method_input!E12<=Method_calculation!D133,"true","false") -> true
A142: heat generator output of the heat pump to the space cooling system | B142: QC;V;gen;hp;in | C142: kWh | D142: =Method_input!E12 -> 0 | E142: Formula (52b)
A143: residual heat demand required for space cooling | B143: Q*C;in | C143: kWh | D143: =0 -> 0 | E143: Formula (53b)
A144: operating time of the heat pump used for space cooling | B144: ton;C | C144: h | D144: =(D142/D133)*((Method_input!E23-IF(D102="true",D106,D113))+(Method_input!E24-IF(D102="true",D107,D114))+(Method_input!E25-IF(D102="true",D108,D115))) -> 0 | E144: Formula (54b)
A145: operating time of the heat pump used for space cooling with stage 1 | B145: ton;C;1 | C145: h | D145: =(D142/D133)*(Method_input!E23-IF(D102="true",D106,D113)) -> 0 | E145: Formula (55b)
A146: operating time of the heat pump used for space cooling with stage 2 | B146: ton;C;2 | C146: h | D146: =(D142/D133)*(Method_input!E24-IF(D102="true",D107,D114)) -> 0 | E146: Formula (55b)
A147: operating time of the heat pump used for space cooling with stage 3 | B147: ton;C;3 | C147: h | D147: =(D142/D133)*(Method_input!E25-IF(D102="true",D108,D115)) -> 0 | E147: Formula (55b)
A148: 6.4.3.10.2 energy input
A149: domestic hot water
A150: electrical input of heat pump for domestic hot water | B150: EW;V;hp;in | C150: kWh | D150: =((Method_input!E79/1000)*Method_calculation!D16*IF(D102="true",D106,D113))+((Method_input!E80/1000)*Method_calculation!D17*IF(D102="true",D107,D114))+((Method_input!E81/1000)*Method_calculation!D18*IF(D102="true",D108,D115)) -> 61.72839506 | E150: Formula (56)
A151: space heating
A152: electrical input of heat pump for space heating | B152: EH;V;hp;in | C152: kWh | D152: =((Method_input!E85/1000)*Method_calculation!D16*IF(Method_calculation!D118="true",Method_calculation!D122,Method_calculation!D129))+((Method_input!E86/1000)*Method_calculation!D17*IF(Method_calculation!D118="true",Method_calculation!D123,Method_calculation!D130))+((Method_input!E87/1000)*Method_calculation!D18*IF(Method_calculation!D118="true",Method_calculation!D124,Method_calculation!D131)) -> 253.9656849 | E152: Formula (57)
A153: space cooling
A154: electrical input of heat pump for space cooling | B154: EC;V;hp;in | C154: kWh | D154: =((Method_input!E91/1000)*Method_calculation!D16*IF(Method_calculation!D134="true",Method_calculation!D138,Method_calculation!D145))+((Method_input!E92/1000)*Method_calculation!D17*IF(Method_calculation!D134="true",Method_calculation!D139,Method_calculation!D146))+((Method_input!E93/1000)*Method_calculation!D18*IF(Method_calculation!D134="true",Method_calculation!D140,Method_calculation!D147)) -> 0 | E154: Formula (58)

Sheet Method_output
A1: THIS IS A MANDATORY SHEET Output of one step calculation shall be indicated here. Each cell in the column value shall be a reference to a single cell in the "Method_calculation" sheet. The macro will take the calculation step results and fill the values table in the "Output_series" sheet.
A4: Name | B4: Symbol | C4: Software name | D4: Unit | E4: Value | F4: Range | G4: Intended destination | H4: Varying | I4: Notes
A5: Energy flow data
A6: electrical input of heat pump for domestic hot water | B6: EW;V;hp;in | C6: E_W_V_hp_in | D6: kWh | E6: =Method_calculation!D150 -> 61.72839506 | F6: 0...∞ | G6: M1-9 | H6: Yes
A7: electrical input of heat pump for space heating | B7: EH;V;hp;in | C7: E_H_V_hp_in | D7: kWh | E7: =Method_calculation!D152 -> 253.9656849 | F7: 0...∞ | G7: M1-9 | H7: Yes
A8: electrical input of heat pump for cooling | B8: EC;V;hp;in | C8: E_C_V_hp_in | D8: kWh | E8: =Method_calculation!D154 -> 0 | F8: 0...∞ | G8: M1-9 | H8: Yes
A9: ventilation fan energy | B9: EV;gen;fan | C9: E_V_gen_fan | D9: kWh | E9: =Method_calculation!D74 -> 84.58797378 | F9: 0...∞ | G9: M1-9, M5-4 | H9: Yes
A10: ventilation auxiliary energy | B10: WV;aux | C10: W_V_aux | D10: kWh | E10: =Method_calculation!D77 -> 32.12439036 | F10: 0...∞ | G10: M1-9, M5-4 | H10: Yes
A11: recoverable duct heat losses | B11: Qls;V;dis;rbl | C11: Q_ls_V_dis_rbl | D11: kWh | E11: =Method_calculation!D67 -> 0 | F11: 0...∞ | G11: M2-2 | H11: Yes
A12: recoverable AHU heat losses | B12: Qls;V;gen;rbl | C12: Q_ls_V_gen_rbl | D12: kWh | E12: =Method_calculation!D72 -> 25.55747351 | F12: 0...∞ | G12: M2-2 | H12: Yes
A13: required AHU heating coil input | B13: QH;V;in;req | C13: Q_H_V_in_req | D13: kWh | E13: =Method_calculation!D98 -> 0 | F13: 0...∞ | G13: M3-1 | H13: Yes
A14: energy output of heat pump to domestic hot water system | B14: QW;V;gen;hp;out | C14: Q_W_V_gen_hp_out | D14: kWh | E14: =IF(Method_calculation!D102="true",Method_calculation!D103,Method_calculation!D110) -> 200 | F14: 0...∞ | G14: M8-1 | H14: Yes
A15: energy extracted by the heat pump from the cooling system | B15: QC;V;gen;hp;in | C15: Q_C_V_gen_hp_in | D15: kWh | E15: =IF(Method_calculation!D134="true",Method_calculation!D135,Method_calculation!D142) -> 0 | F15: 0...∞ | G15: M4-1 | H15: Yes
A16: energy output of heat pump to the space heating system | B16: QH;V;gen;hp;out | C16: Q_H_V_gen_hp_out | D16: kWh | E16: =IF(Method_calculation!D118="true",Method_calculation!D119,Method_calculation!D126) -> 749.8316617 | F16: 0...∞ | G16: M3-1 | H16: Yes
A17: duct heat losses | B17: Qls;V;dis | C17: Q_ls_V_dis | D17: kWh | E17: =Method_calculation!D66 -> 35.73036029 | F17: 0...∞ | G17: M5-4 | H17: Yes
A18: overall heat losses of the AHU | B18: Qls;V;gen | C18: Q_ls_V_gen | D18: kWh | E18: =Method_calculation!D69 -> 25.55747351 | F18: 0...∞ | G18: M5-4 | H18: Yes
A19: heat transferred by heat recovery | B19: Qhr | C19: Q_hr | D19: kWh | E19: =Method_calculation!D94 -> 0 | F19: -∞...∞ | G19: M5-4 | H19: Yes
A21: Operating condition data
A22: mean duct leakage volume flow going to zone with stage 1 | B22: qV;lea;SUP;dis;1 | C22: q_V_lea_SUP_dis_1 | D22: m³/h | E22: =Method_calculation!D21 -> 2.97024 | F22: 0...∞ | G22: M5-5 | H22: Yes
A23: mean duct leakage volume flow going to zone with stage 2 | B23: qV;lea;SUP;dis;2 | C23: q_V_lea_SUP_dis_2 | D23: m³/h | E23: =Method_calculation!D22 -> 4.2432 | F23: 0...∞ | G23: M5-5 | H23: Yes
A24: mean duct leakage volume flow going to zone with stage 3 | B24: qV;lea;SUP;dis;3 | C24: q_V_lea_SUP_dis_3 | D24: m³/h | E24: =Method_calculation!D23 -> 5.51616 | F24: 0...∞ | G24: M5-5 | H24: Yes
A25: supply volume flow rate with stage 1 going to the zone served by the system | B25: qV;SUP;dis;1 | C25: q_V_SUP_dis_1 | D25: m³/h | E25: =Method_calculation!D12 -> 148.512 | F25: 0...∞ | H25: Yes
A26: supply volume flow rate with stage 2 going to the zone served by the system | B26: qV;SUP;dis;2 | C26: q_V_SUP_dis_2 | D26: m³/h | E26: =Method_calculation!D13 -> 212.16 | F26: 0...∞ | H26: Yes
A27: supply volume flow rate with stage 3 going to the zone served by the system | B27: qV;SUP;dis;3 | C27: q_V_SUP_dis_3 | D27: m³/h | E27: =Method_calculation!D14 -> 275.808 | F27: 0...∞ | H27: Yes
A28: mean supply volume flow going to zone | B28: qV;SUP;dis | C28: q_V_SUP_dis | D28: m³/h | E28: =Method_calculation!D15 -> 212.16 | F28: 0...∞ | G28: M5-5 | H28: Yes
A29: mean duct leakage volume flow from the zone with stage 1 | B29: qV;lea;ETA;dis;1 | C29: q_V_lea_ETA_dis_1 | D29: m³/h | E29: =Method_calculation!D24 -> 2.97024 | F29: 0...∞ | G29: M5-5 | H29: Yes
A30: mean duct leakage volume flow from the zone with stage 2 | B30: qV;lea;ETA;dis;2 | C30: q_V_lea_ETA_dis_2 | D30: m³/h | E30: =Method_calculation!D25 -> 4.2432 | F30: 0...∞ | G30: M5-5 | H30: Yes
A31: mean duct leakage volume flow from the zone with stage 3 | B31: qV;lea;ETA;dis;3 | C31: q_V_lea_ETA_dis_3 | D31: m³/h | E31: =Method_calculation!D26 -> 5.51616 | F31: 0...∞ | G31: M5-5 | H31: Yes
A32: extract volume flow rate with stage 1 from the zone served by the system | B32: qV;ETA;dis;1 | C32: q_V_ETA_dis_1 | D32: m³/h | E32: =Method_calculation!D16 -> 148.512 | F32: 0...∞ | H32: Yes
A33: extract volume flow rate with stage 2 from the zone served by the system | B33: qV;ETA;dis;2 | C33: q_V_ETA_dis_2 | D33: m³/h | E33: =Method_calculation!D17 -> 212.16 | F33: 0...∞ | H33: Yes
A34: extract volume flow rate with stage 3 from the zone served by the system | B34: qV;ETA;dis;3 | C34: q_V_ETA_dis_3 | D34: m³/h | E34: =Method_calculation!D18 -> 275.808 | F34: 0...∞ | H34: Yes
A35: mean extract volume flow from the zone | B35: qV;ETA;dis | C35: q_V_ETA_dis | D35: m³/h | E35: =Method_calculation!D19 -> 212.16 | F35: 0...∞ | G35: M5-5 | H35: Yes
A36: supply air temperature with stage 1 | B36: ϑSUP;dis;out;1 | C36: theta_SUP_dis_out_1 | D36: °C | E36: =Method_calculation!D43 -> 17.31848743 | F36: 0…60 | G36: M5-5 | H36: Yes
A37: supply air temperature with stage 2 | B37: ϑSUP;dis;out;2 | C37: theta_SUP_dis_out_2 | D37: °C | E37: =Method_calculation!D44 -> 17.83680499 | F37: 0…60 | G37: M5-5 | H37: Yes
A38: supply air temperature with stage 3 | B38: ϑSUP;dis;out;3 | C38: theta_SUP_dis_out_3 | D38: °C | E38: =Method_calculation!D45 -> 17.87541719 | F38: 0…60 | G38: M5-5 | H38: Yes
A40: Other data

Sheet Output_series
A1: Here a time series can be generated to test the method with variable input data. Data input series must be inserted in the "input_series" sheet before.
A3: Time series for data output
A4: Settings
A5: Number of output data | C5: 33
A7: This table will be filled automatically via a macro scanning the "input_series" and performing for each time step the calculation defined in the "Method_calculation" sheet.
A8: Press CLEAR OUTPUT to reset output series
A9: Press "Run method" to start calculation of individual time steps
B13: electrical input of heat pump for domestic hot water | C13: electrical input of heat pump for space heating | D13: electrical input of heat pump for cooling | E13: ventilation fan energy | F13: ventilation auxiliary energy | G13: recoverable duct heat losses | H13: recoverable AHU heat losses | I13: required AHU heating coil input | J13: energy output of heat pump to domestic hot water system | K13: energy extracted by the heat pump from the cooling system | L13: energy output of heat pump to the space heating system | M13: duct heat losses | N13: Overall heat losses of the AHU | O13: heat transferred by heat recovery | R13: mean duct leakage volume flow going to zone with stage 1 | S13: mean duct leakage volume flow going to zone with stage 2 | T13: mean duct leakage volume flow going to zone with stage 3 | U13: supply volume flow rate with stage 1 going to the zone served by the system | V13: supply volume flow rate with stage 2 going to the zone served by the system | W13: supply volume flow rate with stage 3 going to the zone served by the system | X13: mean supply volume flow going to zone | Y13: mean duct leakage volume flow from the zone with stage1 | Z13: mean duct leakage volume flow from the zone with stage2 | AA13: mean duct leakage volume flow from the zone with stage3 | AB13: extract volume flow rate with stage 1 from the zone served by the system | AC13: extract volume flow rate with stage 2 from the zone served by the system | AD13: extract volume flow rate with stage 3 from the zone served by the system | AE13: mean extract volume flow from the zone | AF13: supply air temperature with stage 1 | AG13: supply air temperature with stage 2 | AH13: supply air temperature with stage 3 | AJ13: mean supply air temperature | AK13: mean duct leckage supply volume flow going to zone | AL13: mean duct leckage extract volume flow from the zone
A14: Symbol | B14: EW;V;hp;in | C14: EH;V;hp;in | D14: EC;V;hp;in | E14: EV;gen;fan | F14: WV;aux | G14: Qls;V;dis;rbl | H14: Qls;V;gen;rbl | I14: QH;V;in;req | J14: QW;V;gen;hp;out | K14: QC;V;gen;hp;in | L14: QH;V;gen;hp;out | M14: Qls;V;dis | N14: Qls;V;gen | O14: Qhr | R14: qV;lea;SUP;dis;1 | S14: qV;lea;SUP;dis;2 | T14: qV;lea;SUP;dis;3 | U14: qV;SUP;dis;1 | V14: qV;SUP;dis;2 | W14: qV;SUP;dis;3 | X14: qV;SUP;dis | Y14: qV;lea;ETA;dis;1 | Z14: qV;lea;ETA;dis;2 | AA14: qV;lea;ETA;dis;3 | AB14: qV;ETA;dis;1 | AC14: qV;ETA;dis;2 | AD14: qV;ETA;dis;3 | AE14: qV;ETA;dis | AF14: ϑSUP;dis;out;1 | AG14: ϑSUP;dis;out;2 | AH14: ϑSUP;dis;out;3 | AJ14: ϑSUP;dis;out | AK14: qV;lea;SUP;dis | AL14: qV;lea;ETA;dis
A15: Unit | B15: kWh | C15: kWh | D15: kWh | E15: kWh | F15: kWh | G15: kWh | H15: kWh | I15: kWh | J15: kWh | K15: kWh | L15: kWh | M15: kWh | N15: kWh | O15: kWh | R15: m³/h | S15: m³/h | T15: m³/h | U15: m³/h | V15: m³/h | W15: m³/h | X15: m³/h | Y15: m³/h | Z15: m³/h | AA15: m³/h | AB15: m³/h | AC15: m³/h | AD15: m³/h | AE15: m³/h | AF15: °C | AG15: °C | AH15: °C | AJ15: °C | AK15: m³/h | AL15: m³/h
A16: Destination | B16: M1-9 | C16: M1-9 | D16: M1-9 | E16: M1-9, M5-4 | F16: M1-9, M5-4 | G16: M2-2 | H16: M2-2 | I16: M3-1 | J16: M8-1 | K16: M4-1 | L16: M3-1 | M16: M5-4 | N16: M5-4 | O16: M5-4 | R16: M5-5 | S16: M5-5 | T16: M5-5 | X16: M5-5 | Y16: M5-5 | Z16: M5-5 | AA16: M5-5 | AE16: M5-5 | AF16: M5-5 | AG16: M5-5 | AH16: M5-5 | AJ16: M5-5 | AK16: M5-5 | AL16: M5-5
A17: Time stamp
A18: January | B18: 61.72839506 | C18: 253.9656849 | D18: 0 | E18: 84.58797378 | F18: 32.12590654 | G18: 0 | H18: 25.74347351 | I18: 0 | J18: 200 | K18: 0 | L18: 749.8316617 | M18: 35.83410022 | N18: 25.74347351 | O18: 0 | R18: 2.97024 | S18: 4.2432 | T18: 5.51616 | U18: 148.512 | V18: 212.16 | W18: 275.808 | X18: 212.16 | Y18: 2.97024 | Z18: 4.2432 | AA18: 5.51616 | AB18: 148.512 | AC18: 212.16 | AD18: 275.808 | AE18: 212.16 | AF18: 17.33773569 | AG18: 17.85389864 | AH18: 17.89272016 | AJ18: =((AF18*Input_series!S14)+(AG18*Input_series!T14)+(AH18*Input_series!U14))/Input_series!V14 -> 17.69478483 | AK18: =((R18*Input_series!S14)+(S18*Input_series!T14)+(T18*Input_series!U14))/Input_series!V14 -> 4.2432 | AL18: =((Y18*Input_series!S14)+(Z18*Input_series!T14)+(AA18*Input_series!U14))/Input_series!V14 -> 4.2432
A19: February | B19: 61.72839506 | C19: 223.4146449 | D19: 0 | E19: 76.40204083 | F19: 31.42021467 | G19: 0 | H19: 24.31733569 | I19: 0 | J19: 200 | K19: 0 | L19: 635.5707721 | M19: 33.20958929 | N19: 24.31733569 | O19: 0 | R19: 2.97024 | S19: 4.2432 | T19: 5.51616 | U19: 148.512 | V19: 212.16 | W19: 275.808 | X19: 212.16 | Y19: 2.97024 | Z19: 4.2432 | AA19: 5.51616 | AB19: 148.512 | AC19: 212.16 | AD19: 275.808 | AE19: 212.16 | AF19: 17.51096998 | AG19: 18.00774145 | AH19: 18.04844689 | AJ19: =((AF19*Input_series!S15)+(AG19*Input_series!T15)+(AH19*Input_series!U15))/Input_series!V15 -> 17.85571944 | AK19: =((R19*Input_series!S15)+(S19*Input_series!T15)+(T19*Input_series!U15))/Input_series!V15 -> 4.2432 | AL19: =((Y19*Input_series!S15)+(Z19*Input_series!T15)+(AA19*Input_series!U15))/Input_series!V15 -> 4.2432
A20: March | B20: 61.72839506 | C20: 253.9656849 | D20: 0 | E20: 84.58797378 | F20: 7.44 | G20: 0 | H20: 32.62547351 | I20: 0 | J20: 200 | K20: 0 | L20: 749.8316617 | M20: 39.67247755 | N20: 32.62547351 | O20: 0 | R20: 2.97024 | S20: 4.2432 | T20: 5.51616 | U20: 148.512 | V20: 212.16 | W20: 275.808 | X20: 212.16 | Y20: 2.97024 | Z20: 4.2432 | AA20: 5.51616 | AB20: 148.512 | AC20: 212.16 | AD20: 275.808 | AE20: 212.16 | AF20: 18.04992109 | AG20: 18.48636352 | AH20: 18.53293003 | AJ20: =((AF20*Input_series!S16)+(AG20*Input_series!T16)+(AH20*Input_series!U16))/Input_series!V16 -> 18.35640488 | AK20: =((R20*Input_series!S16)+(S20*Input_series!T16)+(T20*Input_series!U16))/Input_series!V16 -> 4.2432 | AL20: =((Y20*Input_series!S16)+(Z20*Input_series!T16)+(AA20*Input_series!U16))/Input_series!V16 -> 4.2432
A21: April | B21: 61.72839506 | C21: 243.7820049 | D21: 0 | E21: 81.85932946 | F21: 7.2 | G21: 0 | H21: 39.52409423 | I21: 0 | J21: 200 | K21: 0 | L21: 711.7446985 | M21: 42.91042674 | N21: 39.52409423 | O21: 0 | R21: 2.97024 | S21: 4.2432 | T21: 5.51616 | U21: 148.512 | V21: 212.16 | W21: 275.808 | X21: 212.16 | Y21: 2.97024 | Z21: 4.2432 | AA21: 5.51616 | AB21: 148.512 | AC21: 212.16 | AD21: 275.808 | AE21: 212.16 | AF21: 18.91609252 | AG21: 19.25557756 | AH21: 19.31156366 | AJ21: =((AF21*Input_series!S17)+(AG21*Input_series!T17)+(AH21*Input_series!U17))/Input_series!V17 -> 19.16107792 | AK21: =((R21*Input_series!S17)+(S21*Input_series!T17)+(T21*Input_series!U17))/Input_series!V17 -> 4.2432 | AL21: =((Y21*Input_series!S17)+(Z21*Input_series!T17)+(AA21*Input_series!U17))/Input_series!V17 -> 4.2432
A22: May | B22: 61.72839506 | C22: 169.3484671 | D22: 0 | E22: 84.58797378 | F22: 7.44 | G22: 0 | H22: 45.11284027 | I22: 0 | J22: 200 | K22: 0 | L22: 500 | M22: 49.42403077 | N22: 45.11284027 | O22: 0 | R22: 2.97024 | S22: 4.2432 | T22: 5.51616 | U22: 148.512 | V22: 212.16 | W22: 275.808 | X22: 212.16 | Y22: 2.97024 | Z22: 4.2432 | AA22: 5.51616 | AB22: 148.512 | AC22: 212.16 | AD22: 275.808 | AE22: 212.16 | AF22: 19.85925697 | AG22: 20.09316619 | AH22: 20.15940916 | AJ22: =((AF22*Input_series!S18)+(AG22*Input_series!T18)+(AH22*Input_series!U18))/Input_series!V18 -> 20.03727744 | AK22: =((R22*Input_series!S18)+(S22*Input_series!T18)+(T22*Input_series!U18))/Input_series!V18 -> 4.2432 | AL22: =((Y22*Input_series!S18)+(Z22*Input_series!T18)+(AA22*Input_series!U18))/Input_series!V18 -> 4.2432
A23: June | B23: 61.72839506 | C23: 0 | D23: 204.9180328 | E23: 81.85932946 | F23: 7.2 | G23: 0 | H23: 24.91870015 | I23: 0 | J23: 200 | K23: 500 | L23: 0 | M23: 22.95702066 | N23: 24.91870015 | O23: 0 | R23: 2.97024 | S23: 4.2432 | T23: 5.51616 | U23: 148.512 | V23: 212.16 | W23: 275.808 | X23: 212.16 | Y23: 2.97024 | Z23: 4.2432 | AA23: 5.51616 | AB23: 148.512 | AC23: 212.16 | AD23: 275.808 | AE23: 212.16 | AF23: 22.96496926 | AG23: 22.91054657 | AH23: 22.87719912 | AJ23: =((AF23*Input_series!S19)+(AG23*Input_series!T19)+(AH23*Input_series!U19))/Input_series!V19 -> 22.91757165 | AK23: =((R23*Input_series!S19)+(S23*Input_series!T19)+(T23*Input_series!U19))/Input_series!V19 -> 4.2432 | AL23: =((Y23*Input_series!S19)+(Z23*Input_series!T19)+(AA23*Input_series!U19))/Input_series!V19 -> 4.2432
A24: July | B24: 61.72839506 | C24: 0 | D24: 253.9656849 | E24: 84.58797378 | F24: 7.44 | G24: 0 | H24: 31.95418225 | I24: 0 | J24: 200 | K24: 619.6762712 | L24: 0 | M24: 26.49995752 | N24: 31.95418225 | O24: 0 | R24: 2.97024 | S24: 4.2432 | T24: 5.51616 | U24: 148.512 | V24: 212.16 | W24: 275.808 | X24: 212.16 | Y24: 2.97024 | Z24: 4.2432 | AA24: 5.51616 | AB24: 148.512 | AC24: 212.16 | AD24: 275.808 | AE24: 212.16 | AF24: 23.4076791 | AG24: 23.39504657 | AH24: 23.38581252 | AJ24: =((AF24*Input_series!S20)+(AG24*Input_series!T20)+(AH24*Input_series!U20))/Input_series!V20 -> 23.3961794 | AK24: =((R24*Input_series!S20)+(S24*Input_series!T20)+(T24*Input_series!U20))/Input_series!V20 -> 4.2432 | AL24: =((Y24*Input_series!S20)+(Z24*Input_series!T20)+(AA24*Input_series!U20))/Input_series!V20 -> 4.2432
A25: August | B25: 61.72839506 | C25: 0 | D25: 253.9656849 | E25: 84.58797378 | F25: 7.44 | G25: 0 | H25: 31.21018225 | I25: 0 | J25: 200 | K25: 619.6762712 | L25: 0 | M25: 26.01687877 | N25: 31.21018225 | O25: 0 | R25: 2.97024 | S25: 4.2432 | T25: 5.51616 | U25: 148.512 | V25: 212.16 | W25: 275.808 | X25: 212.16 | Y25: 2.97024 | Z25: 4.2432 | AA25: 5.51616 | AB25: 148.512 | AC25: 212.16 | AD25: 275.808 | AE25: 212.16 | AF25: 23.33068608 | AG25: 23.3107857 | AH25: 23.29735802 | AJ25: =((AF25*Input_series!S21)+(AG25*Input_series!T21)+(AH25*Input_series!U21))/Input_series!V21 -> 23.31294327 | AK25: =((R25*Input_series!S21)+(S25*Input_series!T21)+(T25*Input_series!U21))/Input_series!V21 -> 4.2432 | AL25: =((Y25*Input_series!S21)+(Z25*Input_series!T21)+(AA25*Input_series!U21))/Input_series!V21 -> 4.2432
A26: September | B26: 61.72839506 | C26: 171.2566356 | D26: 0 | E26: 81.85932946 | F26: 7.2 | G26: 0 | H26: 44.46920026 | I26: 0 | J26: 200 | K26: 0 | L26: 500 | M26: 48.03049415 | N26: 44.46920026 | O26: 0 | R26: 2.97024 | S26: 4.2432 | T26: 5.51616 | U26: 148.512 | V26: 212.16 | W26: 275.808 | X26: 212.16 | Y26: 2.97024 | Z26: 4.2432 | AA26: 5.51616 | AB26: 148.512 | AC26: 212.16 | AD26: 275.808 | AE26: 212.16 | AF26: 19.89775348 | AG26: 20.12735348 | AH26: 20.1940151 | AJ26: =((AF26*Input_series!S22)+(AG26*Input_series!T22)+(AH26*Input_series!U22))/Input_series!V22 -> 20.07304069 | AK26: =((R26*Input_series!S22)+(S26*Input_series!T22)+(T26*Input_series!U22))/Input_series!V22 -> 4.2432 | AL26: =((Y26*Input_series!S22)+(Z26*Input_series!T22)+(AA26*Input_series!U22))/Input_series!V22 -> 4.2432
A27: October | B27: 61.72839506 | C27: 253.9656849 | D27: 0 | E27: 84.58797378 | F27: 7.44 | G27: 0 | H27: 41.55347351 | I27: 0 | J27: 200 | K27: 0 | L27: 749.8316617 | M27: 44.65199408 | N27: 41.55347351 | O27: 0 | R27: 2.97024 | S27: 4.2432 | T27: 5.51616 | U27: 148.512 | V27: 212.16 | W27: 275.808 | X27: 212.16 | Y27: 2.97024 | Z27: 4.2432 | AA27: 5.51616 | AB27: 148.512 | AC27: 212.16 | AD27: 275.808 | AE27: 212.16 | AF27: 18.97383728 | AG27: 19.3068585 | AH27: 19.36347257 | AJ27: =((AF27*Input_series!S23)+(AG27*Input_series!T23)+(AH27*Input_series!U23))/Input_series!V23 -> 19.21472278 | AK27: =((R27*Input_series!S23)+(S27*Input_series!T23)+(T27*Input_series!U23))/Input_series!V23 -> 4.2432 | AL27: =((Y27*Input_series!S23)+(Z27*Input_series!T23)+(AA27*Input_series!U23))/Input_series!V23 -> 4.2432
A28: November | B28: 61.72839506 | C28: 243.7820049 | D28: 0 | E28: 81.85932946 | F28: 7.2 | G28: 0 | H28: 30.34409423 | I28: 0 | J28: 200 | K28: 0 | L28: 711.7446985 | M28: 37.79035934 | N28: 30.34409423 | O28: 0 | R28: 2.97024 | S28: 4.2432 | T28: 5.51616 | U28: 148.512 | V28: 212.16 | W28: 275.808 | X28: 212.16 | Y28: 2.97024 | Z28: 4.2432 | AA28: 5.51616 | AB28: 148.512 | AC28: 212.16 | AD28: 275.808 | AE28: 212.16 | AF28: 17.93443156 | AG28: 18.38380165 | AH28: 18.42911222 | AJ28: =((AF28*Input_series!S24)+(AG28*Input_series!T24)+(AH28*Input_series!U24))/Input_series!V24 -> 18.24911514 | AK28: =((R28*Input_series!S24)+(S28*Input_series!T24)+(T28*Input_series!U24))/Input_series!V24 -> 4.2432 | AL28: =((Y28*Input_series!S24)+(Z28*Input_series!T24)+(AA28*Input_series!U24))/Input_series!V24 -> 4.2432
A29: December | B29: 61.72839506 | C29: 253.9656849 | D29: 0 | E29: 84.58797378 | F29: 32.12439036 | G29: 0 | H29: 25.55747351 | I29: 0 | J29: 200 | K29: 0 | L29: 749.8316617 | M29: 35.73036029 | N29: 25.55747351 | O29: 0 | R29: 2.97024 | S29: 4.2432 | T29: 5.51616 | U29: 148.512 | V29: 212.16 | W29: 275.808 | X29: 212.16 | Y29: 2.97024 | Z29: 4.2432 | AA29: 5.51616 | AB29: 148.512 | AC29: 212.16 | AD29: 275.808 | AE29: 212.16 | AF29: 17.31848743 | AG29: 17.83680499 | AH29: 17.87541719 | AJ29: =((AF29*Input_series!S25)+(AG29*Input_series!T25)+(AH29*Input_series!U25))/Input_series!V25 -> 17.67690321 | AK29: =((R29*Input_series!S25)+(S29*Input_series!T25)+(T29*Input_series!U25))/Input_series!V25 -> 4.2432 | AL29: =((Y29*Input_series!S25)+(Z29*Input_series!T25)+(AA29*Input_series!U25))/Input_series!V25 -> 4.2432
A31: SUM (absolute value) | B31: =ABS(B18)+ABS(B19)+ABS(B20)+ABS(B21)+ABS(B22)+ABS(B23)+ABS(B24)+ABS(B25)+ABS(B26)+ABS(B27)+ABS(B28)+ABS(B29) -> 740.7407407 | C31: =ABS(C18)+ABS(C19)+ABS(C20)+ABS(C21)+ABS(C22)+ABS(C23)+ABS(C24)+ABS(C25)+ABS(C26)+ABS(C27)+ABS(C28)+ABS(C29) -> 2067.446497 | D31: =ABS(D18)+ABS(D19)+ABS(D20)+ABS(D21)+ABS(D22)+ABS(D23)+ABS(D24)+ABS(D25)+ABS(D26)+ABS(D27)+ABS(D28)+ABS(D29) -> 712.8494027 | E31: 995.9551751 | F31: 161.6705116 | G31: 0 | H31: 397.3305234 | I31: 0 | J31: 2400 | K31: 1739.352542 | L31: 6058.386816 | M31: 442.7276894 | N31: 397.3305234 | O31: =ABS(O18)+ABS(O19)+ABS(O20)+ABS(O21)+ABS(O22)+ABS(O23)+ABS(O24)+ABS(O25)+ABS(O26)+ABS(O27)+ABS(O28)+ABS(O29) -> 0
O33: Arithmetic mean | R33: =AVERAGE(R18:R29) -> 2.97024 | S33: 4.2432 | T33: 5.51616 | U33: 148.512 | V33: 212.16 | W33: 275.808 | X33: 212.16 | Y33: 2.97024 | Z33: 4.2432 | AA33: 5.51616 | AB33: 148.512 | AC33: 212.16 | AD33: 275.808 | AE33: 212.16 | AF33: =AVERAGE(AF18:AF29) -> 19.6251517 | AG33: =AVERAGE(AG18:AG29) -> 19.9139954 | AH33: 19.94728805 | AJ33: 19.82881172 | AK33: 4.2432 | AL33: 4.2432

Sheet Graphs

Sheet Greek_to_soft
B2: Greek | C2: Software | D2: Greek capital | E2: Software
B3: α | C3: alpha | D3: (A) | E3: A
B4: β | C4: beta | D4: (B) | E4: B
B5: γ | C5: gamma | D5: Γ | E5: Gamma
B6: δ | C6: delta | D6: Δ | E6: Delta
B7: ε | C7: epsilon | D7: (Ε) | E7: E
B8: ζ | C8: zeta | D8: (Ζ) | E8: Z
B9: η | C9: eta | D9: (Η) | E9: H
B10: ϑ (var. θ) | C10: theta | D10: Θ | E10: Theta
B11: (ι) | C11: iota | D11: (Ι) | E11: I
B12: (κ) | C12: kappa | D12: (Κ) | E12: K
B13: λ | C13: lambda | D13: Λ | E13: Lambda
B14: μ | C14: mu | D14: (Μ) | E14: M
B15: (ν) | C15: nu | D15: (Ν) | E15: N
B16: ξ | C16: xi | D16: Ξ | E16: XI
B17: (ο) | C17: omicron | D17: (Ο) | E17: O
B18: π | C18: pi | D18: Π | E18: Pi
B19: ρ | C19: rho | D19: (Ρ) | E19: P
B20: σ (var. ς) | C20: sigma | D20: Σ | E20: Sigma
B21: (τ) | C21: tau | D21: (Τ) | E21: T
B22: (υ) | C22: upsilon | D22: Υ | E22: Y
B23: φ (var. ϕ) | C23: phi | D23: Φ | E23: Phi
B24: (χ) | C24: chi | D24: (Χ) | E24: X
B25: ψ | C25: psi | D25: Ψ | E25: Psi
B26: ω | C26: omega | D26: Ω | E26: Omega
C28: Do not use these letters: risk of confusion with latin alphabet

Sheet Symbols
D2: Symbol | E2: Meaning | F2: Unit
D3: A | E3: area | F3: m²
D4: b | E4: temperature reduction factor | F4: -
D5: C | E5: heat capacity | F5: J/K a)
D6: c | E6: specific heat capacity | F6: J/(kg•K) a)
D7: c | E7: coefficient d) | F7: various
D8: d | E8: thickness | F8: m
D9: D | E9: diameter | F9: m
D10: E | E10: energy in general e) | F10: kg, m3, (kW•h), J a) b)
D11: EP | E11: energy performance indicator | F11: J/(m2•a),
F12: kg/(m2•a),
F13: €/(m2•a) a) c)
D14: f | E14: factor (e.g. primary energy factor, policy factor, …) | F14: – d)
D15: H | E15: heat transfer coefficient | F15: W/K
D16: H | E16: calorific value | F16: MJ/kg
D17: h | E17: surface coefficient of heat transfer | F17: W/(m²•K)
D18: I | E18: solar irradiance | F18: W/m2
D19: k | E19: coefficient | F19: d)
D20: K | E20: CO2 emission coefficient | F20: kg/J; g/(kW•h)
D21: L | E21: length | F21: m
D22: m | E22: mass (e.g. quantity of CO2 emissions) | F22: kg
D23: n | E23: air exchange rate | F23: 1/h
D24: N | E24: number of items (integer only) | F24: –
D25: O | E25: occupancy | F25: persons
D26: p | E26: pressure | F26: Pa
D27: P | E27: power in general including electrical power | F27: W
D28: Q | E28: quantity of heat | F28: J, (kW•h) a)
D29: q | E29: volumetric airflow rate | F29: m3/s
D30: q | E30: heat flow density | F30: W/m²
D31: R | E31: thermal resistance | F31: m²·K/W
D32: RER | E32: renewable energy ratio | F32: –
D33: T | E33: thermodynamic temperature | F33: K
D34: t | E34: time, period of time | F34: s a)
D35: U | E35: thermal transmittance | F35: W/(m²•K)
D36: V | E36: volume | F36: m³
D37: W | E37: (electrical) auxiliary energy | F37: (kW•h), J a)
D38: x | E38: mixing ratio | F38: %kg/kg
D39: X | E39: volume fraction | F39: %
D40: X, Y | E40: any property, system, … | F40: –
D41: Δ | E41: delta (difference) prefix to be combined with symbols | F41: various
D42: h | E42: efficiency factor | F42: -
D43: φ | E43: relative humidity | F43: %
D44: ϑ | E44: Celsius temperature | F44: °C
D45: ψ | E45: linear thermal transmittance | F45: W/(m•K)
D46: Φ | E46: heat flow rate, thermal power | F46: W
D47: χ | E47: point thermal transmittance | F47: W/K
D48: ρ | E48: density | F48: kg/m³
D49: τ | E49: time constant | F49: s a)
D50: τ | E50: light transmittance | F50: ?
D51: … | E51: … your new symbol … | F51: …
D58: a) | E58: Hours (h) may be used as the unit of time instead of seconds for all quantities involving time (i.e. for time periods as well as for air change rates), but in that case the unit of energy is (W•h) instead of J.
D59: b) | E59: The unit depends on the type of energy carrier.
D60: c) | E60: The unit depends on the indicator chosen
D61: d) | E61: Coefficients have dimensions; factors are dimensionless.
D62: e) | E62: Including primary energy and energy carriers; note that for heat the symbol Q and for auxiliary energy and work the symbol W is used.

Sheet Subs_building
B2: COMMON SUBSCRIPTS: BUILDING
B4: Level 1 | D4: Level 2 | F4: Level 3
B5: Service | D5: Building | F5: Utilised or non-utilised
B6: H | C6: heating | D6: nd | E6: need | F6: ut | G6: utilised
B7: C | C7: cooling | D7: ht | E7: heat transfer | F7: nut | G7: non-utilised
B8: W | C8: DHW | D8: tr | E8: transmission heat transfer | F8: … | G8: … your new subscript
B9: V | C9: ventilation | D9: ve | E9: ventilation heat transfer
B10: HU | C10: Humidification | D10: gn | E10: gains
B11: DHU | C11: Dehumidification | D11: sol | E11: solar
B12: L | C12: lighting | D12: int | E12: internal
B13: BAC | C13: Building automation and control | D13: sens | E13: sensible
B14: E | C14: Photovoltaic, wind | D14: lat | E14: latent
B15: XY | C15: combination of H, C, W | D15: … | E15: … your new subscript
B16: EPus | C16: EPB services
B17: nEPus | C17: non EPB services
B18: TOT | C18: total
B19: A | C19: appliances
B20: T | C20: transport
B21: … | C21: … your new subscript
B28: Please insert any new subscript in the yellow field

Sheet Subs_system
B2: COMMON SUBSCRIPTS: ENERGY EXCHANGE BETWEEN SUBSYSTEMS
B4: Level 1 | D4: Level 2 | F4: Level 3 | H4: Level 4 | J4: Level 5
B5: Service | D5: Technical building system | F5: Balance item | H5: Balance item specification | J5: Destination of recovery (service)
B6: H | C6: heating | D6: us | E6: use | F6: ls | G6: losses | H6: rbl | I6: recoverable | J6: H | K6: heating
B7: C | C7: cooling | D7: sys | E7: system | F7: aux | G7: auxiliary | H7: rvd | I7: recovered | J7: C | K7: cooling
B8: W | C8: DHW | D8: em | E8: emission | F8: in | G8: input | H8: nrbl | I8: non-recoverable | J8: W | K8: DHW
B9: V | C9: ventilation | D9: dis | E9: distribution | F9: out | G9: output | H9: nrvd | I9: non-recovered | J9: V | K9: ventilation
B10: HU | C10: Humidification | D10: sto | E10: storage | F10: … | G10: … your new subscript | H10: … | I10: … your new subscript | J10: HU | K10: Humidification
B11: DHU | C11: Dehumidification | D11: nod | E11: node | J11: DHU | K11: Dehumidification
B12: L | C12: lighting | D12: gen | E12: generation | J12: L | K12: lighting
B13: BAC | C13: BAC | D13: hum | E13: humidification a | J13: BAC | K13: BAC
B14: E | C14: Photovoltaic, wind | D14: dhum | E14: dehumidification a | J14: E | K14: Photovoltaic, wind
B15: XY | C15: combination of H, C, W | D15: hp | E15: heat pump | J15: XY | K15: combination of H, C, W
B16: EPus | C16: EPBD services | D16: blr | E16: boiler | J16: EPus | K16: EPBD services
B17: nEPus | C17: non EPBD services | D17: cgn | E17: cogeneration | J17: nEPus | K17: non EPBD services
B18: TOT | C18: total | D18: ts | E18: thermal solar | J18: TOT | K18: total
B19: A | C19: appliances | D19: pv | E19: Photovoltaic | J19: A | K19: appliances
B20: T | C20: transport | D20: lrh | E20: local and radiant heaters | J20: T | K20: transport
B21: … | C21: … your new subscript | D21: … | E21: … your new subscript | J21: … | K21: … your new subscript
B26: Please insert any new subscript in the yellow field

Sheet Subs_del_EP
B2: COMMON SUBSCRIPTS: ENERGY FLOWS AT ASSESSMENT BOUNDARY
B4: Level 1 | D4: Level 2 | F4: Level 3
B5: Type of energy flow | D5: Energy carrier | F5: Qualifier
F6: which service
B7: del | C7: delivered | D7: gas | E7: gas | F7: H | G7: heating
B8: exp | C8: exported | D8: oil | E8: oil | F8: C | G8: cooling
B9: pr | C9: produced | D9: el | E9: electricity | F9: W | G9: DHW
B10: EPus | C10: used for EPBD services | D10: wd | E10: wood | F10: V | G10: ventilation
B11: nEPus | C11: used for services other than EPBD | D11: dh | E11: district heating | F11: HU | G11: Humidification
B12: … | C12: … your new subscript | D12: dc | E12: district cooling | F12: DHU | G12: Dehumidification
D13: sf | E13: solid fuel | F13: L | G13: lighting
D14: lf | E14: liquid fuel | F14: BAC | G14: BAC
D15: bm | E15: biomass | F15: E | G15: Photovoltaic, wind
D16: sol | E16: solar heat | F16: XY | G16: combination of H, C, W
D17: pv | E17: solar electricity | F17: EPus | G17: EPBD services
D18: ah | E18: Heat from surroundings | F18: nEPus | G18: non EPBD services
D19: wnd | E19: wind | F19: TOT | G19: total
D20: cr | E20: carrier (generic) | F20: A | G20: appliances
D21: … | E21: … your new subscript | F21: T | G21: transport
F22: … | G22: … your new subscript
F24: Qualifier
F25: Origin
F26: onst | G26: on site
F27: ofst | G27: off site
F28: nrby | G28: neardy
F29: dist | G29: distant
F30: … | G30: … your new subscript
F32: Qualifier
F33: which balance item
F34: used | G34: used in the same time step
F35: nused | G35: NOT used in the same time step
F36: rdel | G36: redelivered
F37: tmp | G37: temporary (exported)
F38: grid | G38: to/from grid
F39: … | G39: … your new subscript
B42: Level 1 | D42: Level 2 | F42: Level 3 | H42: Level 4
B43: Primary energy | D43: Type of primary energy | F43: Qualifier | H43: Energy carrier
F44: Type of energy flow
B45: P | C45: Primary | D45: tot | E45: total primary energy | F45: del | G45: delivered | H45: See level 2…3 of table above
B46: … | C46: … your new subscript | D46: ren | E46: renewable primary fraction | F46: exp | G46: exported
D47: nren | E47: non renewable primary fraction | F47: pr | G47: produced
D48: … | E48: … your new subscript | F48: … | G48: … your new subscript
F50: Qualifier
F51: Destination of energy flow
F52: EPus | G52: used for EPBD services
F53: nEPus | G53: used for services other than EPBD
F54: X | G54: Any EPB use
F55: … | G55: … your new subscript
F57: Qualifier
F58: Origin of energy flow
F59: onst | G59: on site
F60: ofst | G60: off site
F61: nrby | G61: neardy
F62: dist | G62: distant
F63: … | G63: … your new subscript
B66: Please insert any new subscript in the yellow field

Sheet Subs_other
B1: OTHER COMMON SUBSCRIPTS
B3: Level n + 1 | D3: Level n + 2 | F3: Level n + 3 | H3: Level n + 4
B4: Spatial coverage | D4: Time period | F4: How acquired | H4: Statistical
B5: B | C5: building | D5: wk | E5: weekly | F5: calc | G5: calculated | H5: avg | I5: time-average
B6: zb | C6: building zone | D6: day | E6: daily | F6: meas | G6: measured | H6: mn | I6: mean (time or space) a
B7: sp | C7: space | D7: h | E7: hourly | F7: est | G7: estimated | H7: max | I7: maximum
B8: bu | C8: building unit | D8: m | E8: monthly | F8: … | G8: … your new subscript | H8: min | I8: minimum
B9: zt | C9: thermal zone | D9: seas | E9: seasonal | H9: pk | I9: peak
B10: zV | C10: ventilation zone | D10: bin | E10: bin | H10: … | I10: … your new subscript
B11: … | C11: … your new subscript | D11: an | E11: annual
D12: … | E12: … your new subscript
B15: a mean is used for time or spatial average (to be ascertained from the context)
B17: Please insert any new subscript in the yellow field

Sheet History
B2: Date | C2: Version scope | D2: Changes, notes
B4: 2012-07-04 | C4: Issued for discussion in CTL
B5: 2012-08-24 | C5: Issued for comments in TC 371 | D5: Improved readability
B6: 2013-07-03 | C6: Revised for the toolkit
B7: 2013-11-18 | C7: Revised to include software language and references to common symbols and subscripts
B8: 2016-01-01 | C8: Adapted to FV version
B9: 2016-01-31 | C9: Disclaimer added
